{"text_format":"1","workbook":"xlsx","n_sheets":6,"sheets":["Formato ","Instructivo","macros","LISTAS DESPLEGABLES","Glosario","BD"],"not_rendered":{"charts":0,"images":3,"macros":1,"external_links":1,"defined_names":13,"comments":0,"pivot_tables":0},"unopened":[],"bounds":{"document_bytes":16777216,"sheet_cells":100000,"rows_first":2000,"rows_last":500,"rows_between":2000,"halvings":0,"cell_chars":16384,"cell_head_chars":4096},"cells_cut":0,"cells_raw":0,"read":"whole","date_system":"1900"}

{"sheet":"Formato ","index":0,"n_rows":104,"n_cols":5,"rows_kept":104,"cut":false,"hidden":false,"merged":[[57,0,57,2],[57,3,57,5],[93,4,93,5],[94,4,94,5],[95,4,95,5],[96,4,96,5],[78,4,78,5],[79,4,79,5],[66,3,66,5],[68,0,68,2],[73,4,74,5],[73,0,74,0],[73,1,74,1],[73,2,74,2],[73,3,74,3],[103,0,103,5],[99,1,99,5],[59,0,59,2],[65,0,65,5],[100,1,100,5],[68,3,68,5],[63,0,63,5],[59,3,59,5],[67,0,67,2],[67,3,67,5],[66,0,66,2],[101,1,101,5],[71,0,71,5],[60,0,60,2],[60,3,60,5],[98,0,98,5],[97,4,97,5],[90,4,90,5],[91,4,91,5],[85,4,85,5],[86,4,86,5],[87,4,87,5],[102,0,102,5],[92,4,92,5],[51,3,51,5],[49,0,49,2],[50,0,50,2],[47,3,47,5],[52,0,52,2],[52,3,52,5],[47,0,47,2],[28,1,28,5],[35,0,35,5],[41,0,41,5],[42,0,42,5],[51,0,51,2],[30,4,30,5],[44,0,44,5],[31,2,31,3],[31,4,31,5],[32,2,32,3],[32,4,32,5],[50,3,50,5],[33,4,33,5],[45,0,45,5],[46,0,46,5],[27,1,27,5],[39,0,39,5],[4,1,4,5],[5,1,5,5],[9,1,9,5],[48,0,48,2],[48,3,48,5],[49,3,49,5],[25,1,25,2],[25,4,25,5],[8,1,8,5],[20,0,20,5],[34,2,34,3],[34,4,34,5],[40,0,40,5],[37,0,37,5],[29,0,34,0],[29,2,29,3],[29,4,29,5],[24,1,24,5],[23,1,23,5],[30,2,30,3],[26,1,26,5],[43,0,43,5],[0,1,0,5],[13,1,13,5],[14,1,14,5],[64,3,64,5],[62,0,62,2],[15,1,15,5],[22,1,22,5],[21,0,21,5],[11,1,11,5],[12,1,12,5],[6,1,6,5],[10,1,10,5],[7,1,7,5],[17,0,17,5],[18,0,18,5],[19,0,19,5],[36,0,36,5],[38,0,38,5],[55,3,55,5],[54,0,54,5],[33,2,33,3],[1,0,1,5],[2,1,2,5],[3,1,3,5],[55,0,55,2],[58,3,58,5],[53,3,53,5],[88,4,88,5],[89,4,89,5],[81,4,81,5],[61,0,61,5],[83,4,83,5],[84,4,84,5],[82,4,82,5],[62,3,62,5],[64,0,64,2],[70,0,70,5],[69,0,69,2],[69,3,69,5],[75,4,75,5],[76,4,76,5],[77,4,77,5],[80,4,80,5],[56,0,56,2],[53,0,53,2],[58,0,58,2],[56,3,56,5],[72,0,72,5]]}
[null,"FICHA PERFIL\nAnexo No 4"]
["1. INFORMACIÓN GENERAL DE LA(S) ORGANIZACIÓN(ES) Y REPRESENTANTES LEGALES"]
["Nombre de la organización"]
["Departamento donde se ubica la organización"]
["Municipio donde se ubica la organización"]
["Número de identificación tributaria de la Organización"]
["Fecha de constitución de la organización ante la cámara de comercio"]
["Tipo de organización "]
["Número de Integrantes de la organización"]
["Objeto de la organización"]
["Dirección de la organización"]
["Teléfono de la organización"]
["Correo electrónico de la organización y/o del representante legal"]
["Nombres y apellidos del representante legal"]
["Número de documento de identificación del representante legal"]
["Teléfono del representante legal"]
["Nombre de otro miembro de la organización",null,"Teléfono",null,"Cargo"]
["2. DESCRIBA BREVEMENTE SU ORGANIZACIÓN"]
[]
["3. IDENTIFIQUE SU NECESIDAD"]
[]
["4. INFORMACIÓN GENERAL Y ALCANCE DEL EMPRENDIMIENTO"]
["Nombre del emprendimiento"]
["Alcance del empredimiento"]
["Tempo de ejecución del emprendimiento (Meses)"]
["Línea productiva",null,null,"Cadena productiva"]
["Línea de inversión"]
["Número de beneficiarios directos "]
["Número de beneficiarios indirectos"]
["Clasificación de los beneficiarios directos","Grupo poblacional","Mujer",null,"Hombre"]
[null,"Grupo étnico"]
[null,"Víctimas del conflicto armado"]
[null,"Reincorporados"]
[null,"Mujeres ",null,null,"No aplica"]
[null,"Jóvenes "]
["A. OBJETIVO GENERAL"]
[]
["B. JUSTIFICACIÓN"]
[]
["C. RESULTADOS ESPERADOS - ASPECTOS TÉCNICOS DE LA PROPUESTA"]
[]
["D. COMPONENTES DE LA PROPUESTA"]
["COMPONENTE COMERCIAL"]
["1.Descripción de la actividad del emprendimiento"]
[]
["2. Describa las características generales del producto"]
[]
["3. Su producto tiene valor agregado: "]
["Si su respuesta es SI, seleccione una opción de la siguiente lista desplegable:"]
["4. Su producto cuenta con ficha técnica:"]
["5. Cuenta con aliado comercial: "]
["Si su respuesta es SI, seleccione de acuerdo a la lista desplegable:"]
["6. Su producto requiere registro INVIMA?"]
["Si su respuesta es SI, cuenta con el registro INVIMA?"]
["COMPONENTE ACTIVOS PRODUCTIVOS"]
["1. La propuesta requiere la dotación de  equipos y herramientas"]
["Si su respuesta es SI, enúncielas brevemente según lo requiera la propuesta:"]
["2. La propuesta requiere la dotación de materiales e insumos:"]
["Si su respuesta es SI, enúncielas brevemente según lo requiera la propuesta:"]
["3. La propuesta requiere canales de distribución y mercadeo (Comercialización)"]
["Si su respuesta es SI, seleccione de acuerdo a la lista desplegable:"]
["COMPONENTE DE ASISTENCIA TECNICA"]
["Su emprendimiento requiere capacitación o asistencia técnica?"]
["COMPONENTE DE ADECUACIÓN DE TIERRAS"]
["Describa el tipo de adecuación de tierras que se requiere para esta propuesta"]
["ASPECTOS DE SOSTENIBILIDAD AMBIENTAL "]
["1.  La implementación de la propuesta requiere de permisos ambientales?"]
["Si la respuesta es afirmativa por favor descríbala"]
["2. Cuenta con permisos para el desarrollo de su propuesta?"]
["Si la respuesta es afirmativa por favor descríbala"]
["5. INVERSION"]
["Estime los valores y costos requeridos para el desarrollo de las actividades"]
["PLAN DE INVERSIÓN DEL EMPRENDIMIENTO"]
["DESCRIPCION ACTIVIDAD","UNIDAD DE MEDIDA","CANTIDAD","VALOR UNITARIO","VALOR TOTAL"]
[]
["Mano de Obra y/o Costos Operativos",null,null,{"$f":"SUM(D77:D81)","v":0},{"$f":"SUM(E77:F81)","v":0}]
[null,null,null,null,{"$f":"+C77*D77","v":0}]
[null,null,null,null,0]
[null,null,null,null,0]
[null,null,null,null,0]
[null,null,null,null,0]
["Maquinaria y Equipo",null,null,{"$f":"SUM(D83:D87)","v":0},{"$f":"SUM(E83:F87)","v":0}]
[null,null,null,null,{"$f":"+C83*D83","v":0}]
[null,null,null,null,0]
[null,null,null,null,0]
[null,null,null,null,0]
[null,null,null,null,0]
["Materiales e Insumos",null,null,{"$f":"SUM(D89:D93)","v":0},{"$f":"SUM(E89:F93)","v":0}]
[null,null,null,null,0]
[null,null,null,null,{"$f":"+C90*D90","v":0}]
[null,null,null,null,0]
[null,null,null,null,0]
[null,null,null,null,0]
["Acciones Complementarias",null,null,{"$f":"SUM(D95:D97)","v":0},{"$f":"SUM(E95:F97)","v":0}]
[null,null,null,null,{"$f":"+C95*D95","v":0}]
[null,null,null,null,{"$f":"+C96*D96","v":0}]
[null,null,null,null,{"$f":"+C97*D97","v":0}]
["TOTAL COSTOS DE INVERSIÓN DEL EMPRENDIMIENTO",null,null,null,{"$f":"+E76+E82+E88+E94","v":0}]
["FUENTES DE FINANCIACIÓN (cifras en pesos)"]
["Apoyo solicitado a la Secretaria de la Mujer y Equidad de Género",0]
["Contrapartida de la organización",0]
["Valor total del emprendimiento",0]
["FIRMA Y DATOS COMPLETOS DEL REPRESENTANTE LEGAL"]
["Firma\nNombre del Representante Legal\nNúmero de cédula"]

{"sheet":"Instructivo","index":1,"n_rows":69,"n_cols":7,"rows_kept":69,"cut":false,"hidden":false,"merged":[[67,0,67,6],[68,0,68,6],[41,0,41,1],[43,0,43,1],[66,2,66,6],[66,0,66,1],[56,0,56,6],[57,0,57,6],[53,0,53,6],[60,2,60,6],[61,2,61,6],[58,0,58,1],[60,0,60,1],[61,0,61,1],[58,2,58,6],[59,2,59,6],[45,0,45,1],[45,2,45,6],[47,0,47,1],[47,2,47,6],[46,0,46,1],[59,0,59,1],[50,0,50,1],[50,2,50,6],[64,2,64,6],[65,2,65,6],[51,0,51,6],[63,0,63,6],[16,0,16,1],[28,2,28,6],[26,0,26,1],[27,0,27,1],[24,2,24,6],[25,0,25,1],[19,0,19,6],[22,0,22,6],[23,2,23,6],[23,0,23,1],[20,0,20,6],[31,0,31,6],[37,0,37,1],[33,0,33,6],[34,0,34,6],[46,2,46,6],[64,0,64,1],[65,0,65,1],[52,0,52,1],[52,2,52,6],[26,2,26,6],[25,5,25,6],[24,0,24,1],[36,0,36,6],[29,0,29,1],[29,2,29,6],[18,0,18,6],[62,0,62,1],[49,0,49,6],[54,2,54,6],[55,2,55,6],[55,0,55,1],[48,0,48,1],[48,2,48,6],[43,2,43,6],[37,2,37,6],[28,0,28,1],[38,2,38,6],[39,2,39,6],[40,0,40,1],[44,0,44,6],[30,0,30,6],[14,2,14,6],[13,0,13,1],[27,2,27,6],[32,0,32,6],[15,0,15,1],[16,2,16,6],[17,0,17,1],[14,0,14,1],[15,2,15,6],[13,2,13,6],[21,0,21,6],[39,0,39,1],[42,0,42,1],[42,2,42,6],[40,2,40,6],[41,2,41,6],[25,2,25,3],[35,0,35,6],[0,0,0,1],[6,0,6,1],[6,2,6,6],[7,2,7,6],[3,0,3,1],[3,2,3,6],[0,2,0,6],[4,0,4,1],[12,0,12,1],[5,2,5,6],[1,0,1,6],[12,2,12,6],[4,2,4,6],[5,0,5,1],[7,0,7,1],[2,0,2,6],[8,0,8,1],[8,2,8,6],[9,0,9,1],[9,2,9,6],[10,0,10,1],[10,2,10,6],[11,0,11,1],[11,2,11,6]]}
[null,null,"INSTRUCTIVO DILIGENCIAMIENTO FORMATO PERFIL DE PROYECTO"]
[{"$f":"+'Formato '!A2:F2","v":"1. INFORMACIÓN GENERAL DE LA(S) ORGANIZACIÓN(ES) Y REPRESENTANTES LEGALES"}]
["Esta información se debe reportar para todas las Organizaciones que participan como beneficiarias en la propuesta"]
[{"$f":"+'Formato '!A3","v":"Nombre de la organización"},null,"Escribir el nombre de la organización tal como aparece en el certificado de existencia y representación legal"]
[{"$f":"+'Formato '!A4","v":"Departamento donde se ubica la organización"},null,"Cundinamarca"]
[{"$f":"+'Formato '!A5","v":"Municipio donde se ubica la organización"},null,"Seleccione de la lista desplegable el municipio en donde se encuentra ubicada la organización"]
[{"$f":"+'Formato '!A6","v":"Número de identificación tributaria de la Organización"},null,"Escriba el NIT o número de identificación de la organización"]
[{"$f":"+'Formato '!A7","v":"Fecha de constitución de la organización ante la cámara de comercio"},null,"Escriba la fecha de constitución legal de la Organización. El requisito mínimo para participar en esta invitación es contar con 6 meses de antigüedad en la constitución de la organización antes de la postulación, según el certificado de existencia y representación Legal."]
[{"$f":"+'Formato '!A8","v":"Tipo de organización "},null,"Seleccione de la lista desplegable el tipo de organización a la que pertenece."]
[{"$f":"+'Formato '!A9","v":"Número de Integrantes de la organización"},null,"Escriba el número de asociados activos de la organización"]
[{"$f":"+'Formato '!A10","v":"Objeto de la organización"},null,"Escriba el objeto de la organización tal cual se encuentra en el certificado de existencia y representación legal."]
[{"$f":"+'Formato '!A11","v":"Dirección de la organización"},null,"Escriba la dirección de la organización"]
[{"$f":"+'Formato '!A12","v":"Teléfono de la organización"},null,"Escriba el número telefónico de la organización."]
[{"$f":"+'Formato '!A13","v":"Correo electrónico de la organización y/o del representante legal"},null,"Escriba el correo electrónico de la organización y/o del representante legal, verifique que este funcionando correctamente toda vez que la información de la presente convocatoria será remitida por este medio,"]
[{"$f":"+'Formato '!A14","v":"Nombres y apellidos del representante legal"},null,"Escriba los nombres y apellidos del representante legal"]
[{"$f":"+'Formato '!A15","v":"Número de documento de identificación del representante legal"},null,"Escriba el número de identificación del representante legal"]
[{"$f":"+'Formato '!A16","v":"Teléfono del representante legal"},null,"Escriba el número telefónico del representante legal"]
[{"$f":"+'Formato '!A17","v":"Nombre de otro miembro de la organización"},null,"Escriba el nombre de otro miembro de la organización para comunicarse en caso de que el representante legal no conteste",{"$f":"+'Formato '!C17","v":"Teléfono"},"Escriba el número de teléfono del otro miembro de la organización ",{"$f":"+'Formato '!E17","v":"Cargo"},"Escriba el cargo que ostenta dentro de la organización"]
[{"$f":"+'Formato '!A18:F18","v":"2. DESCRIBA BREVEMENTE SU ORGANIZACIÓN"}]
["(Describe brevemente su organización y (cuéntenos a que se dedica y hace cuanto tiempo desarrolla esta actividad) (cuál es su producto, bien o servicio principal) y si (cuenta con un canal de comercialización definido), además si (su producto, bien o servicio cuenta con un valor agregado que lo haga diferente a los demás.)"]
[{"$f":"+'Formato '!A20:F20","v":"3. IDENTIFIQUE SU NECESIDAD"}]
["Describa las necesidades que presenta la organización y que requiere para desarrollar su emprendimiento y/o actividad a la que se dedica."]
[{"$f":"+'Formato '!A22:F22","v":"4. INFORMACIÓN GENERAL Y ALCANCE DEL EMPRENDIMIENTO"}]
[{"$f":"+'Formato '!A23","v":"Nombre del emprendimiento"},null,"Identifique un nombre característico e innovador que represente su emprendimiento"]
[{"$f":"+'Formato '!A24","v":"Alcance del empredimiento"},null,"Defina el alcance del proyecto debe llevar una Acción (ej.: Implementar – Mejorar – Fortalecer –Capacitar – Etc., un Objeto, (Ej.: la cadena productiva de… – La calidad de semilla – la especie bovina –  las mujeres campesinas – Etc.), y una Ubicación (Ej.: en el municipio de…). Estas tres descripciones constituyen en su conjunto  alcance de la propuesta."]
[{"$f":"+'Formato '!A26","v":"Línea productiva"},null,"Seleccione de la lista desplegable la línea productiva en la cual se enmarca el emprendimiento",null,{"$f":"+'Formato '!D26","v":"Cadena productiva"},"Seleccione de la lista desplegable la cadena productiva en la que se enmarca el emprendimiento"]
[{"$f":"+'Formato '!A27","v":"Línea de inversión"},null,"Seleccione de la lista desplegable la línea de inversión por la cual se enmarca el emprendimiento. "]
[{"$f":"+'Formato '!A28","v":"Número de beneficiarios directos "},null,"Escriba el número de beneficiarios directos de la propuesta, entiéndase como beneficiarios directos los socios o afiliados que participen con el desarrollo de actividades propias de la iniciativa."]
[{"$f":"+'Formato '!A29","v":"Número de beneficiarios indirectos"},null,"Escriba el número de los beneficiarios que son indirectos en el proyecto a desarrollar, entendidos como aquellos que no participan directamente en el desarrollo de las actividades pero se beneficiaran de los resultados del mismo, por ejemplo el núcleo familiar de los socios o afiliados que participen de la propuesta, comercializadores, distribuidores, etc."]
[{"$f":"+'Formato '!A30","v":"Clasificación de los beneficiarios directos"},null,"Clasifique el total de hombres y mujeres que hacen parte de los beneficiarios directos de la propuesta, en cada una de las categorías incluidas en este apartado (Grupos Poblacionales)."]
[{"$f":"+'Formato '!A36:F36","v":"A. OBJETIVO GENERAL"}]
["Escriba el objetivo que se quiere lograr con la propuesta. Tenga en cuenta que el objetivo debe iniciar con un verbo en infinitivo (terminados en ar, er, ir, como por ejemplo: incentivar, fomentar, articular, propender, colaborar, promover, fortalecer, velar, entre otros) y debe ser medible. "]
[{"$f":"+'Formato '!A38:F38","v":"B. JUSTIFICACIÓN"}]
["Describa  las razones del porque de esta propuesta. Mencione la problemática que enfrentan actualmente los beneficiarios y explique como se va a solucionar con este emprendimiento."]
[{"$f":"+'Formato '!A40:F40","v":"C. RESULTADOS ESPERADOS - ASPECTOS TÉCNICOS DE LA PROPUESTA"}]
["Describir los productos, resultados, y estimación preliminar de los ingresos que se esperan del proyecto (La oportunidad de tener accesibilidad a las productos de la presente convocatorio)"]
[{"$f":"+'Formato '!A42:F42","v":"D. COMPONENTES DE LA PROPUESTA"}]
[{"$f":"+'Formato '!A44:F44","v":"1.Descripción de la actividad del emprendimiento"},null,"Describa brevemente en que consiste su negocio y los beneficios que ofrecerán sus productos a los clientes."]
[{"$f":"+'Formato '!A46:F46","v":"2. Describa las características generales del producto"},null,"Describa la variedad, volumen, calidad, rendimientos y certificaciones del producto."]
[{"$f":"+'Formato '!A48:C48","v":"3. Su producto tiene valor agregado: "},null,"Seleccione de la lista desplegable si el producto que espera derivar de esta propuesta genera valor agregado. En caso afirmativo, seleccione de la lista desplegable en el siguiente campo, el tipo de valor agregado que genera"]
[{"$f":"+'Formato '!A50:C50","v":"4. Su producto cuenta con ficha técnica:"},null,"Seleccione en la lista desplegable si el producto que se espera derivar de esta propuesta cuenta con ficha técnica."]
[{"$f":"+'Formato '!A51:C51","v":"5. Cuenta con aliado comercial: "},null,"Seleccione en la lista desplegable si el producto que se espera derivar de esta propuesta cuenta con aliado comercial. En caso afirmativo, seleccione en la lista desplegable en el siguiente campo, el tipo de aliado comercial con el que cuenta."]
[{"$f":"+'Formato '!A53:C53","v":"6. Su producto requiere registro INVIMA?"},null,"Seleccione en la lista desplegable si el producto requiere registro INVIMA."]
[{"$f":"+'Formato '!A54:C54","v":"Si su respuesta es SI, cuenta con el registro INVIMA?"},null,"Seleccione en la lista desplegable si el producto que se espera derivar de esta propuesta cuenta o no con el registro INVIMA."]
[{"$f":"+'Formato '!A55:F55","v":"COMPONENTE ACTIVOS PRODUCTIVOS"}]
[{"$f":"+'Formato '!A56:C56","v":"1. La propuesta requiere la dotación de  equipos y herramientas"},null,"Seleccione en la lista desplegable si esta propuesta requiere adquisición de equipos y herramientas. En caso afirmativo, Enúncielos en el siguiente campo."]
[{"$f":"+'Formato '!A58:C58","v":"2. La propuesta requiere la dotación de materiales e insumos:"},null,"Seleccione en la lista desplegable si esta propuesta requiere adquisición de insumos. En caso afirmativo, Enúncielos en el siguiente campo."]
[{"$f":"+'Formato '!A60:C60","v":"3. La propuesta requiere canales de distribución y mercadeo (Comercialización)"},null,"Seleccione en la lista desplegable si esta propuesta requiere acompañamiento técnico para a comercialización y distribución de este proyecto."]
[{"$f":"+'Formato '!A61:C61","v":"Si su respuesta es SI, seleccione de acuerdo a la lista desplegable:"},null,"Seleccione en la lista desplegable de acuerdo a la necesidad del emprendimiento."]
[{"$f":"+'Formato '!A62:F62","v":"COMPONENTE DE ASISTENCIA TECNICA"}]
[{"$f":"+'Formato '!A63:C63","v":"Su emprendimiento requiere capacitación o asistencia técnica?"},null,"Seleccione en la lista desplegable de acuerdo a la necesidad del emprendimiento."]
[{"$f":"+'Formato '!A64:F64","v":"COMPONENTE DE ADECUACIÓN DE TIERRAS"}]
[{"$f":"+'Formato '!A65:C65","v":"Describa el tipo de adecuación de tierras que se requiere para esta propuesta"},null,"Seleccione  en la lista desplegable el tipo de adecuación de tierras que se requiere en esta propuesta. En caso de no requerir seleccione No Aplica."]
[{"$f":"+'Formato '!A66:F66","v":"ASPECTOS DE SOSTENIBILIDAD AMBIENTAL "}]
["1.  La implementación de la propuesta requiere de permisos ambientales?",null,"Seleccione en la lista desplegable si esta propuesta requiere permisos ambientales. En caso afirmativo describa en el siguiente campo el tipo de permiso que requiere."]
["2. Cuenta con permisos para el desarrollo de su propuesta?",null,"Seleccione de la lista de desplegable si ya cuenta con los permisos que requiere para desarrollar esta propuesta. En caso afirmativo describa que el tipo de permiso que tiene."]
["5. INVERSION"]
["Estime los valores y costos requeridos para el desarrollo de las actividades, desagregados en los siguientes rubros. Escriba los valores en formato número."]
[{"$f":"+'Formato '!A76","v":"Mano de Obra y/o Costos Operativos"},null,"Incluya los valores por concepto de mano de obra no calificada que requiere el emprendimiento y/o Incluya los valores inherentes a las actividades del mismo así como personal administrativo, entre otros."]
[{"$f":"+'Formato '!A82","v":"Maquinaria y Equipo"},null,"Incluya los valores por concepto de herramientas, maquinaria y equipos."]
[{"$f":"+'Formato '!A88","v":"Materiales e Insumos"},null,"Incluya los valores por concepto plaguicidas a, fertilizantes, abonos,  productos biológicos para el control de plagas, productos de uso veterinario, alimentos para animales, pie de cría, material vegetal y demás que pueda requerir en la propuesta."]
[{"$f":"+'Formato '!A94","v":"Acciones Complementarias"},null,"Incluya los valores por concepto de transporte y demás costos adicionales requeridos para la entrega de las líneas de apoyo."]
[{"$f":"+'Formato '!A98","v":"TOTAL COSTOS DE INVERSIÓN DEL EMPRENDIMIENTO"},null,"Incluye la suma de los valores definidos en las inversiones anteriores. Esta valor representa la inversión total requerida en la propuesta"]
[{"$f":"+'Formato '!A99:F99","v":"FUENTES DE FINANCIACIÓN (cifras en pesos)"}]
[{"$f":"+'Formato '!A100","v":"Apoyo solicitado a la Secretaria de la Mujer y Equidad de Género"},null,"Incluye los capítulos del plan de inversión del emprendimiento que será solicitado como apoyo de la Secretaria de la Mujer y Equidad de Género"]
[{"$f":"+'Formato '!A101","v":"Contrapartida de la organización"},null,"Incluye los capítulos del plan de inversión del emprendimiento que será aportado con recursos de la Organización, la cual puede ser en bienes o servicios o capital (Efectivo)"]
[{"$f":"+'Formato '!A102","v":"Valor total del emprendimiento"},null,"Incluye la suma de los capítulos del plan de inversión aportados por todos los cofinanciadores del emprendimiento. Este valor debe coincidir con el valor total de la inversión."]
[{"$f":"+'Formato '!A103:F103","v":"FIRMA Y DATOS COMPLETOS DEL REPRESENTANTE LEGAL"}]
["Con la firma del presente documento da por entendido que acepta y esta de acuerdo con todas los términos y condiciones de la convocatoria y que autoriza al tratamiento de datos según lo establecido en el habeas Data."]

{"sheet":"macros","index":2,"n_rows":141,"n_cols":10,"rows_kept":141,"cut":false,"hidden":true,"merged":[]}
["Cundinamarca",null,null,null,null,null,null,null,null,"CARACTERIZACIÓN"]
["Lineas","Agroindustrial","Agropecuaria","Servicios",null,null,"Lineas de Inversión","Comercialización",null,"Madre Cabeza de Familia"]
["Agroindustrial","Alimentaria","Agrícola","Turismo y hotelería",null,null,"Materiales e Insumos","Canales de Distribución",null,"Víctimas del Desplazamiento Armado"]
["Agropecuaria","No alimentaria","Pecuaria","Ambientales",null,null,"Maquinaria, Equipo y Herramienta","Mercadeo y Marketing",null,"Condición de Discapacidad"]
["Servicios","Artesanal",null,"Reciclaje",null,null,"Maquinaria, Equipo y Herramienta - Insumos","Todas las Anteriores",null,"Grupo Étnicos y Raizales"]
[null,null,null,"Gastronómicas",null,null,null,null,null,"Emprendedora"]
[null,null,null,"Comerciales "]
[]
["Fecha de constitución de la organización (mínimo 6 meses de constitución) ante la cámara de comercio",null,null,null,null,null,"ALIADO COMERCIAL"]
["1900-01-01",null,null,"Género",null,null,"Exportación ","Capacitación"]
["2020-01-30",null,null,"Femenino",null,null,"Institucional","Asistencia Técnica"]
["Tipo de Organizacón ",null,null,"Masculino",null,null,"Mayorista","Todas las Anteriores"]
["Asociaciones",null,null,null,null,null,"Minorista"]
["Cooperativa y Precooperativas",null,null,null,null,null,"Tansformador"]
["Empresas Comunitarias y Comités Empresariales",null,null,null,null,null,"Otros"]
[]
[null,null,null,null,null,null,"Seleccione el tipo de adecuación de tierras que se requiere para esta propuesta"]
["ETAPAS DE LA CADENA PRODUCTIVA",null,null,null,null,null,"Sistemas de riego completos a nivel predial o soluciones alternativas de adecuación de tierras"]
["Insumo","En esta etapa se incluyen a los proveedores de la materia prima y su almacenamiento.",null,null,null,null,"Preparación de terrenos "]
["Producción","Se produce el bien o servicio deseado, se estudia la oferta y la demanda y se realiza un control del inventario.",null,null,null,null,"No Aplica"]
["Conservación"," Almacenamiento del producto."]
["Transformación","Se realiza el inventario de los bienes producidos."]
["Comercialización","Se comercializa y exporta."]
[]
["Nombre Municipio"]
["Agua de Dios"]
["Albán"]
["Anapoima"]
["Anolaima"]
["Apulo"]
["Arbeláez"]
["Beltrán"]
["Bituima"]
["Bojacá"]
["Cabrera"]
["Cachipay"]
["Cajicá"]
["Caparrapí"]
["Cáqueza"]
["Carmen de Carupa"]
["Chaguaní"]
["Chía"]
["Chipaque"]
["Choachí"]
["chocontá"]
["Cogua"]
["Cota"]
["Cucunubá"]
["El Colegio"]
["El Peñón"]
["El Rosal"]
["Facatativá"]
["Fómeque"]
["Fosca"]
["Funza"]
["Fúquene"]
["Fusagasugá"]
["Gachalá"]
["Gachancipá"]
["Gachetá"]
["Gama"]
["Girardot"]
["Granada"]
["Guachetá"]
["Guaduas"]
["Guasca"]
["Guataquí"]
["Guatavita"]
["Guayabal de Síquima"]
["Guayabetal"]
["Gutiérrez"]
["Jerusalén"]
["Junín"]
["La Calera"]
["La Mesa"]
["La Palma"]
["La Peña"]
["La Vega"]
["Lenguazaque"]
["Machetá"]
["Madrid"]
["Manta"]
["Medina"]
["Mosquera"]
["Nariño"]
["Nemocón"]
["Nilo"]
["Nimaima"]
["Nocaima"]
["Pacho"]
["Paime"]
["Pandi"]
["Paratebueno"]
["Pasca"]
["Puerto Salgar"]
["Pulí"]
["Quebradanegra"]
["Quetame"]
["Quipile"]
["Ricaurte"]
["San Antonio del Tequendama"]
["San Bernardo"]
["San Cayetano"]
["San Francisco"]
["San Juan de Rioseco"]
["Sasaima"]
["Sesquilé"]
["Sibaté"]
["Silvania"]
["Simijaca"]
["Soacha"]
["Sopó"]
["Subachoque"]
["Suesca"]
["Supatá"]
["Susa"]
["Sutatausa"]
["Tabio"]
["Tausa"]
["Tena"]
["Tenjo"]
["Tibacuy"]
["Tibirita"]
["Tocaima"]
["Tocancipá"]
["Topaipí"]
["Ubalá"]
["Ubaque"]
["Ubaté"]
["Une"]
["Útica"]
["Venecia"]
["Vergara"]
["Vianí"]
["Villagómez"]
["Villapinzón"]
["Villeta"]
["Viotá"]
["Yacopí"]
["Zipacón"]
["Zipaquirá"]

{"sheet":"LISTAS DESPLEGABLES","index":3,"n_rows":1124,"n_cols":11,"rows_kept":1124,"cut":false,"hidden":true,"merged":[]}
["CÓDIGO DANE DEL DEPARTAMENTO","DEPARTAMENTOS","CÓDIGO DANE DEL MUNICIPIO","MUNICIPIO","TIPO DE ORGANIZACIÓN","TIPO DE PROYECTO","LINEAS DE COFINANCIACIÓN","LINEAMIENTO","LINEA PRODUCTIVA","ADECUACIÓN DE TIERRAS","SEXO"]
[91,"Amazonas",91.46,"Miriti Paraná","Juntas de Acción comunal",null,"Especialización Competitiva","Ordenamiento de la producción","Agrícola","Construcción o ampliación, rehabilitación, complementación, modernización y/o conservación de distritos de pequeña y mediana escala existentes de propiedad de las asociaciones de usuarios.","Hombre"]
[5,"Antioquia",91.001000000000005,"Leticia","Cabildos Indígenas","Proyecto de iniciativa territorial","Encadenamiento productivo","Agricultura por contrato","Pecuaria","Sistemas de riego completos a nivel predial o soluciones alternativas de adecuación de tierras","Mujer"]
[81,"Arauca",91.263000000000005,"El Encanto","Consejos Comunitarios","Proyecto de iniciativa asociativa",null,"Adecuación de Tierras","Agropecuaria","Preparación de terrenos "]
[88,"Archipiélago de San Andrés, Providencia y Santa Catalina",91.405000000000001,"La Chorrera","Empresas Comunitarias",null,null,"Estrategia de gestión Integral de Riesgos Agropecuarios","Agroindustrial"]
[8,"Atlántico",91.406999999999996,"La Pedrera","Kumpanias",null,null,"Asistencia técnica y extensión","Agroforestal"]
[11,"Bogotá D.C.",91.43,"La Victoria","Cooperativas agropecuarios, piscícolas o agroindustriales",null,null,"Transversal","Otra"]
[13,"Bolívar",91.536000000000001,"Puerto Arica","Precooperativas agropecuarias, piscícolas o agroindustriales"]
[15,"Boyacá",91.54,"Puerto Nariño","Cooperativas multiactivas e integrales rurales"]
[17,"Caldas",91.668999999999997,"Puerto Santander","Sociedades agrarias de transformación - SAT."]
[18,"Caquetá",91.798000000000002,"Tarapacá","Asociaciones de Usuarios de Distritos de Adecuación de Tierras"]
[85,"Casanare",91.53,"Puerto Alegría","Asociaciones o corporaciones campesinas"]
[19,"Cauca",5.0010000000000003,"Medellín","Asociaciones o corporaciones agropecuarias"]
[20,"Cesar",5.0019999999999998,"Abejorral"]
[27,"Chocó",5.0039999999999996,"Abriaquí"]
[23,"Córdoba",5.0209999999999999,"Alejandría"]
[25,"Cundinamarca",5.03,"Amagá"]
[94,"Guainía",5.0309999999999997,"Amalfi"]
[95,"Guaviare",5.0339999999999998,"Andes"]
[41,"Huila",5.0359999999999996,"Angelópolis"]
[44,"La Guajira",5.0380000000000003,"Angostura"]
[47,"Magdalena",5.04,"Anorí"]
[50,"Meta",5.0439999999999996,"Anza"]
[52,"Nariño",5.0449999999999999,"Apartadó"]
[54,"Norte de Santander",5.0510000000000002,"Arboletes"]
[86,"Putumayo",5.0549999999999997,"Argelia"]
[63,"Quindío",5.0590000000000002,"Armenia"]
[66,"Risaralda",5.0789999999999997,"Barbosa"]
[68,"Santander",5.0880000000000001,"Bello"]
[70,"Sucre",5.0910000000000002,"Betania"]
[73,"Tolima",5.093,"Betulia"]
[76,"Valle del Cauca",5.101,"Ciudad Bolívar"]
[97,"Vaupés",5.1070000000000002,"Briceño"]
[99,"Vichada",5.1130000000000004,"Buriticá"]
[null,null,5.12,"Cáceres"]
[null,null,5.125,"Caicedo"]
[null,null,5.1289999999999996,"Caldas"]
[null,null,5.1340000000000003,"Campamento"]
[null,null,5.1379999999999999,"Cañasgordas"]
[null,null,5.1420000000000003,"Caracolí"]
[null,null,5.1449999999999996,"Caramanta"]
[null,null,5.1470000000000002,"Carepa"]
[null,null,5.15,"Carolina"]
[null,null,5.1539999999999999,"Caucasia"]
[null,null,5.1719999999999997,"Chigorodó"]
[null,null,5.19,"Cisneros"]
[null,null,5.1970000000000001,"Cocorná"]
[null,null,5.2060000000000004,"Concepción"]
[null,null,5.2089999999999996,"Concordia"]
[null,null,5.2119999999999997,"Copacabana"]
[null,null,5.234,"Dabeiba"]
[null,null,5.2370000000000001,"Don Matías"]
[null,null,5.24,"Ebéjico"]
[null,null,5.25,"El Bagre"]
[null,null,5.2640000000000002,"Entrerrios"]
[null,null,5.266,"Envigado"]
[null,null,5.282,"Fredonia"]
[null,null,5.306,"Giraldo"]
[null,null,5.3079999999999998,"Girardota"]
[null,null,5.31,"Gómez Plata"]
[null,null,5.3150000000000004,"Guadalupe"]
[null,null,5.3179999999999996,"Guarne"]
[null,null,5.3209999999999997,"Guatapé"]
[null,null,5.3470000000000004,"Heliconia"]
[null,null,5.3529999999999998,"Hispania"]
[null,null,5.36,"Itagui"]
[null,null,5.3609999999999998,"Ituango"]
[null,null,5.3680000000000003,"Jericó"]
[null,null,5.3760000000000003,"La Ceja"]
[null,null,5.38,"La Estrella"]
[null,null,5.39,"La Pintada"]
[null,null,5.4,"La Unión"]
[null,null,5.4109999999999996,"Liborina"]
[null,null,5.4249999999999998,"Maceo"]
[null,null,5.44,"Marinilla"]
[null,null,5.4669999999999996,"Montebello"]
[null,null,5.4749999999999996,"Murindó"]
[null,null,5.48,"Mutatá"]
[null,null,5.4829999999999997,"Nariño"]
[null,null,5.49,"Necoclí"]
[null,null,5.4950000000000001,"Nechí"]
[null,null,5.5010000000000003,"Olaya"]
[null,null,5.5410000000000004,"Peñol"]
[null,null,5.5430000000000001,"Peque"]
[null,null,5.5759999999999996,"Pueblorrico"]
[null,null,5.5789999999999997,"Puerto Berrío"]
[null,null,5.585,"Puerto Nare"]
[null,null,5.5910000000000002,"Puerto Triunfo"]
[null,null,5.6040000000000001,"Remedios"]
[null,null,5.6070000000000002,"Retiro"]
[null,null,5.6150000000000002,"Rionegro"]
[null,null,5.6280000000000001,"Sabanalarga"]
[null,null,5.6310000000000002,"Sabaneta"]
[null,null,5.6420000000000003,"Salgar"]
[null,null,5.6520000000000001,"San Francisco"]
[null,null,5.6559999999999997,"San Jerónimo"]
[null,null,5.66,"San Luis"]
[null,null,5.6639999999999997,"San Pedro"]
[null,null,5.6669999999999998,"San Rafael"]
[null,null,5.67,"San Roque"]
[null,null,5.6740000000000004,"San Vicente"]
[null,null,5.6790000000000003,"Santa Bárbara"]
[null,null,5.69,"Santo Domingo"]
[null,null,5.6970000000000001,"El Santuario"]
[null,null,5.7359999999999998,"Segovia"]
[null,null,5.7610000000000001,"Sopetrán"]
[null,null,5.7889999999999997,"Támesis"]
[null,null,5.79,"Tarazá"]
[null,null,5.7919999999999998,"Tarso"]
[null,null,5.8090000000000002,"Titiribí"]
[null,null,5.819,"Toledo"]
[null,null,5.8369999999999997,"Turbo"]
[null,null,5.8419999999999996,"Uramita"]
[null,null,5.8470000000000004,"Urrao"]
[null,null,5.8540000000000001,"Valdivia"]
[null,null,5.8559999999999999,"Valparaíso"]
[null,null,5.8579999999999997,"Vegachí"]
[null,null,5.8609999999999998,"Venecia"]
[null,null,5.8849999999999998,"Yalí"]
[null,null,5.8869999999999996,"Yarumal"]
[null,null,5.89,"Yolombó"]
[null,null,5.8929999999999998,"Yondó"]
[null,null,5.8949999999999996,"Zaragoza"]
[null,null,5.2839999999999998,"Frontino"]
[null,null,5.3129999999999997,"Granada"]
[null,null,5.3639999999999999,"Jardín"]
[null,null,5.7560000000000002,"Sonsón"]
[null,null,5.0860000000000003,"Belmira"]
[null,null,5.665,"San Pedro de Uraba"]
[null,null,5.0419999999999998,"Santafé de Antioquia"]
[null,null,5.6859999999999999,"Santa Rosa de Osos"]
[null,null,5.6470000000000002,"San Andrés de Cuerquía"]
[null,null,5.8730000000000002,"Vigía del Fuerte"]
[null,null,5.6580000000000004,"San José de La Montaña"]
[null,null,5.6589999999999998,"San Juan de Urabá"]
[null,null,5.1479999999999997,"El Carmen de Viboral"]
[null,null,5.649,"San Carlos"]
[null,null,81.064999999999998,"Arauquita"]
[null,null,81.22,"Cravo Norte"]
[null,null,81.3,"Fortul"]
[null,null,81.590999999999994,"Puerto Rondón"]
[null,null,81.736000000000004,"Saravena"]
[null,null,81.793999999999997,"Tame"]
[null,null,81.001000000000005,"Arauca"]
[null,null,88.563999999999993,"Providencia"]
[null,null,88.001000000000005,"San Andrés"]
[null,null,8.0009999999999994,"Barranquilla"]
[null,null,8.0779999999999994,"Baranoa"]
[null,null,8.141,"Candelaria"]
[null,null,8.2959999999999994,"Galapa"]
[null,null,8.4209999999999994,"Luruaco"]
[null,null,8.4329999999999998,"Malambo"]
[null,null,8.4359999999999999,"Manatí"]
[null,null,8.5489999999999995,"Piojó"]
[null,null,8.5579999999999998,"Polonuevo"]
[null,null,8.6340000000000003,"Sabanagrande"]
[null,null,8.6379999999999999,"Sabanalarga"]
[null,null,8.6750000000000007,"Santa Lucía"]
[null,null,8.6850000000000005,"Santo Tomás"]
[null,null,8.7579999999999991,"Soledad"]
[null,null,8.77,"Suan"]
[null,null,8.8320000000000007,"Tubará"]
[null,null,8.8490000000000002,"Usiacurí"]
[null,null,8.6059999999999999,"Repelón"]
[null,null,8.5730000000000004,"Puerto Colombia"]
[null,null,8.56,"Ponedera"]
[null,null,8.3719999999999999,"Juan de Acosta"]
[null,null,8.52,"Palmar de Varela"]
[null,null,8.1370000000000005,"Campo de La Cruz"]
[null,null,11.000999999999999,"Bogotá D.C."]
[null,null,13.268000000000001,"El Peñón"]
[null,null,13.006,"Achí"]
[null,null,13.042,"Arenal"]
[null,null,13.052,"Arjona"]
[null,null,13.061999999999999,"Arroyohondo"]
[null,null,13.14,"Calamar"]
[null,null,13.16,"Cantagallo"]
[null,null,13.188000000000001,"Cicuco"]
[null,null,13.212,"Córdoba"]
[null,null,13.222,"Clemencia"]
[null,null,13.247999999999999,"El Guamo"]
[null,null,13.43,"Magangué"]
[null,null,13.433,"Mahates"]
[null,null,13.44,"Margarita"]
[null,null,13.458,"Montecristo"]
[null,null,13.468,"Mompós"]
[null,null,13.473000000000001,"Morales"]
[null,null,13.49,"Norosí"]
[null,null,13.548999999999999,"Pinillos"]
[null,null,13.58,"Regidor"]
[null,null,13.6,"Río Viejo"]
[null,null,13.647,"San Estanislao"]
[null,null,13.65,"San Fernando"]
[null,null,13.657,"San Juan Nepomuceno"]
[null,null,13.673,"Santa Catalina"]
[null,null,13.683,"Santa Rosa"]
[null,null,13.744,"Simití"]
[null,null,13.76,"Soplaviento"]
[null,null,13.78,"Talaigua Nuevo"]
[null,null,13.81,"Tiquisio"]
[null,null,13.836,"Turbaco"]
[null,null,13.837999999999999,"Turbaná"]
[null,null,13.872999999999999,"Villanueva"]
[null,null,13.000999999999999,"Cartagena"]
[null,null,13.442,"María la Baja"]
[null,null,13.62,"San Cristóbal"]
[null,null,13.894,"Zambrano"]
[null,null,13.074,"Barranco de Loba"]
[null,null,13.688000000000001,"Santa Rosa del Sur"]
[null,null,13.3,"Hatillo de Loba"]
[null,null,13.244,"El Carmen de Bolívar"]
[null,null,13.667,"San Martín de Loba"]
[null,null,13.03,"Altos del Rosario"]
[null,null,13.654999999999999,"San Jacinto del Cauca"]
[null,null,13.67,"San Pablo de Borbur"]
[null,null,13.654,"San Jacinto"]
[null,null,15.805999999999999,"Tibasosa"]
[null,null,15.000999999999999,"Tunja"]
[null,null,15.022,"Almeida"]
[null,null,15.047000000000001,"Aquitania"]
[null,null,15.051,"Arcabuco"]
[null,null,15.09,"Berbeo"]
[null,null,15.092000000000001,"Betéitiva"]
[null,null,15.097,"Boavita"]
[null,null,15.103999999999999,"Boyacá"]
[null,null,15.106,"Briceño"]
[null,null,15.109,"Buena Vista"]
[null,null,15.114000000000001,"Busbanzá"]
[null,null,15.131,"Caldas"]
[null,null,15.135,"Campohermoso"]
[null,null,15.162000000000001,"Cerinza"]
[null,null,15.172000000000001,"Chinavita"]
[null,null,15.176,"Chiquinquirá"]
[null,null,15.18,"Chiscas"]
[null,null,15.183,"Chita"]
[null,null,15.185,"Chitaraque"]
[null,null,15.186999999999999,"Chivatá"]
[null,null,15.204000000000001,"Cómbita"]
[null,null,15.212,"Coper"]
[null,null,15.215,"Corrales"]
[null,null,15.218,"Covarachía"]
[null,null,15.223000000000001,"Cubará"]
[null,null,15.224,"Cucaita"]
[null,null,15.226000000000001,"Cuítiva"]
[null,null,15.231999999999999,"Chíquiza"]
[null,null,15.236000000000001,"Chivor"]
[null,null,15.238,"Duitama"]
[null,null,15.244,"El Cocuy"]
[null,null,15.247999999999999,"El Espino"]
[null,null,15.272,"Firavitoba"]
[null,null,15.276,"Floresta"]
[null,null,15.292999999999999,"Gachantivá"]
[null,null,15.295999999999999,"Gameza"]
[null,null,15.298999999999999,"Garagoa"]
[null,null,15.317,"Guacamayas"]
[null,null,15.321999999999999,"Guateque"]
[null,null,15.324999999999999,"Guayatá"]
[null,null,15.332000000000001,"Güicán"]
[null,null,15.362,"Iza"]
[null,null,15.367000000000001,"Jenesano"]
[null,null,15.368,"Jericó"]
[null,null,15.377000000000001,"Labranzagrande"]
[null,null,15.38,"La Capilla"]
[null,null,15.401,"La Victoria"]
[null,null,15.425000000000001,"Macanal"]
[null,null,15.442,"Maripí"]
[null,null,15.455,"Miraflores"]
[null,null,15.464,"Mongua"]
[null,null,15.465999999999999,"Monguí"]
[null,null,15.468999999999999,"Moniquirá"]
[null,null,15.48,"Muzo"]
[null,null,15.491,"Nobsa"]
[null,null,15.494,"Nuevo Colón"]
[null,null,15.5,"Oicatá"]
[null,null,15.507,"Otanche"]
[null,null,15.510999999999999,"Pachavita"]
[null,null,15.513999999999999,"Páez"]
[null,null,15.516,"Paipa"]
[null,null,15.518000000000001,"Pajarito"]
[null,null,15.522,"Panqueba"]
[null,null,15.531000000000001,"Pauna"]
[null,null,15.532999999999999,"Paya"]
[null,null,15.542,"Pesca"]
[null,null,15.55,"Pisba"]
[null,null,15.571999999999999,"Puerto Boyacá"]
[null,null,15.58,"Quípama"]
[null,null,15.599,"Ramiriquí"]
[null,null,15.6,"Ráquira"]
[null,null,15.621,"Rondón"]
[null,null,15.632,"Saboyá"]
[null,null,15.638,"Sáchica"]
[null,null,15.646000000000001,"Samacá"]
[null,null,15.66,"San Eduardo"]
[null,null,15.673,"San Mateo"]
[null,null,15.686,"Santana"]
[null,null,15.69,"Santa María"]
[null,null,15.696,"Santa Sofía"]
[null,null,15.72,"Sativanorte"]
[null,null,15.723000000000001,"Sativasur"]
[null,null,15.74,"Siachoque"]
[null,null,15.753,"Soatá"]
[null,null,15.755000000000001,"Socotá"]
[null,null,15.757,"Socha"]
[null,null,15.759,"Sogamoso"]
[null,null,15.760999999999999,"Somondoco"]
[null,null,15.762,"Sora"]
[null,null,15.763,"Sotaquirá"]
[null,null,15.763999999999999,"Soracá"]
[null,null,15.773999999999999,"Susacón"]
[null,null,15.776,"Sutamarchán"]
[null,null,15.778,"Sutatenza"]
[null,null,15.79,"Tasco"]
[null,null,15.798,"Tenza"]
[null,null,15.804,"Tibaná"]
[null,null,15.808,"Tinjacá"]
[null,null,15.81,"Tipacoque"]
[null,null,15.814,"Toca"]
[null,null,15.82,"Tópaga"]
[null,null,15.821999999999999,"Tota"]
[null,null,15.835000000000001,"Turmequé"]
[null,null,15.839,"Tutazá"]
[null,null,15.842000000000001,"Umbita"]
[null,null,15.861000000000001,"Ventaquemada"]
[null,null,15.879,"Viracachá"]
[null,null,15.897,"Zetaquira"]
[null,null,15.403,"La Uvita"]
[null,null,15.087,"Belén"]
[null,null,15.832000000000001,"Tununguá"]
[null,null,15.476000000000001,"Motavita"]
[null,null,15.189,"Ciénega"]
[null,null,15.816000000000001,"Togüí"]
[null,null,15.407,"Villa de Leyva"]
[null,null,15.537000000000001,"Paz de Río"]
[null,null,15.693,"Santa Rosa de Viterbo"]
[null,null,15.680999999999999,"San Pablo de Borbur"]
[null,null,15.667,"San Luis de Gaceno"]
[null,null,15.664,"San José de Pare"]
[null,null,15.676,"San Miguel de Sema"]
[null,null,15.837,"Tuta"]
[null,null,17.001000000000001,"Manizales"]
[null,null,17.013000000000002,"Aguadas"]
[null,null,17.042000000000002,"Anserma"]
[null,null,17.05,"Aranzazu"]
[null,null,17.088000000000001,"Belalcázar"]
[null,null,17.173999999999999,"Chinchiná"]
[null,null,17.271999999999998,"Filadelfia"]
[null,null,17.38,"La Dorada"]
[null,null,17.388000000000002,"La Merced"]
[null,null,17.433,"Manzanares"]
[null,null,17.442,"Marmato"]
[null,null,17.446000000000002,"Marulanda"]
[null,null,17.486000000000001,"Neira"]
[null,null,17.495000000000001,"Norcasia"]
[null,null,17.513000000000002,"Pácora"]
[null,null,17.524000000000001,"Palestina"]
[null,null,17.541,"Pensilvania"]
[null,null,17.614000000000001,"Riosucio"]
[null,null,17.616,"Risaralda"]
[null,null,17.652999999999999,"Salamina"]
[null,null,17.661999999999999,"Samaná"]
[null,null,17.664999999999999,"San José"]
[null,null,17.777000000000001,"Supía"]
[null,null,17.867000000000001,"Victoria"]
[null,null,17.873000000000001,"Villamaría"]
[null,null,17.876999999999999,"Viterbo"]
[null,null,17.443999999999999,"Marquetalia"]
[null,null,18.46,"Milán"]
[null,null,18.001000000000001,"Florencia"]
[null,null,18.029,"Albania"]
[null,null,18.204999999999998,"Curillo"]
[null,null,18.247,"El Doncello"]
[null,null,18.256,"El Paujil"]
[null,null,18.478999999999999,"Morelia"]
[null,null,18.591999999999999,"Puerto Rico"]
[null,null,18.41,"La Montañita"]
[null,null,18.753,"San Vicente del Caguán"]
[null,null,18.756,"Solano"]
[null,null,18.785,"Solita"]
[null,null,18.86,"Valparaíso"]
[null,null,18.61,"San José del Fragua"]
[null,null,18.094000000000001,"Belén de Los Andaquies"]
[null,null,18.149999999999999,"Cartagena del Chairá"]
[null,null,85.224999999999994,"Nunchía"]
[null,null,85.138999999999996,"Maní"]
[null,null,85.4,"Támara"]
[null,null,85.23,"Orocué"]
[null,null,85.001000000000005,"Yopal"]
[null,null,85.01,"Aguazul"]
[null,null,85.015000000000001,"Chámeza"]
[null,null,85.125,"Hato Corozal"]
[null,null,85.135999999999996,"La Salina"]
[null,null,85.162000000000006,"Monterrey"]
[null,null,85.263000000000005,"Pore"]
[null,null,85.278999999999996,"Recetor"]
[null,null,85.3,"Sabanalarga"]
[null,null,85.314999999999998,"Sácama"]
[null,null,85.41,"Tauramena"]
[null,null,85.43,"Trinidad"]
[null,null,85.44,"Villanueva"]
[null,null,85.325000000000003,"San Luis de Gaceno"]
[null,null,85.25,"Paz de Ariporo"]
[null,null,19.516999999999999,"Páez"]
[null,null,19.001000000000001,"Popayán"]
[null,null,19.021999999999998,"Almaguer"]
[null,null,19.05,"Argelia"]
[null,null,19.074999999999999,"Balboa"]
[null,null,19.100000000000001,"Bolívar"]
[null,null,19.11,"Buenos Aires"]
[null,null,19.13,"Cajibío"]
[null,null,19.137,"Caldono"]
[null,null,19.141999999999999,"Caloto"]
[null,null,19.212,"Corinto"]
[null,null,19.256,"El Tambo"]
[null,null,19.29,"Florencia"]
[null,null,19.3,"Guachené"]
[null,null,19.318000000000001,"Guapi"]
[null,null,19.355,"Inzá"]
[null,null,19.364000000000001,"Jambaló"]
[null,null,19.391999999999999,"La Sierra"]
[null,null,19.396999999999998,"La Vega"]
[null,null,19.417999999999999,"López"]
[null,null,19.45,"Mercaderes"]
[null,null,19.454999999999998,"Miranda"]
[null,null,19.472999999999999,"Morales"]
[null,null,19.513000000000002,"Padilla"]
[null,null,19.532,"Patía"]
[null,null,19.533000000000001,"Piamonte"]
[null,null,19.547999999999998,"Piendamó"]
[null,null,19.573,"Puerto Tejada"]
[null,null,19.585000000000001,"Puracé"]
[null,null,19.622,"Rosas"]
[null,null,19.701000000000001,"Santa Rosa"]
[null,null,19.742999999999999,"Silvia"]
[null,null,19.760000000000002,"Sotara"]
[null,null,19.78,"Suárez"]
[null,null,19.785,"Sucre"]
[null,null,19.806999999999999,"Timbío"]
[null,null,19.809000000000001,"Timbiquí"]
[null,null,19.821000000000002,"Toribio"]
[null,null,19.824000000000002,"Totoró"]
[null,null,19.844999999999999,"Villa Rica"]
[null,null,19.698,"Santander de Quilichao"]
[null,null,19.693000000000001,"San Sebastián"]
[null,null,20.001000000000001,"Valledupar"]
[null,null,20.010999999999999,"Aguachica"]
[null,null,20.013000000000002,"Agustín Codazzi"]
[null,null,20.032,"Astrea"]
[null,null,20.045000000000002,"Becerril"]
[null,null,20.059999999999999,"Bosconia"]
[null,null,20.175000000000001,"Chimichagua"]
[null,null,20.178000000000001,"Chiriguaná"]
[null,null,20.228000000000002,"Curumaní"]
[null,null,20.238,"El Copey"]
[null,null,20.25,"El Paso"]
[null,null,20.295000000000002,"Gamarra"]
[null,null,20.309999999999999,"González"]
[null,null,20.382999999999999,"La Gloria"]
[null,null,20.443000000000001,"Manaure"]
[null,null,20.516999999999999,"Pailitas"]
[null,null,20.55,"Pelaya"]
[null,null,20.57,"Pueblo Bello"]
[null,null,20.620999999999999,"La Paz"]
[null,null,20.71,"San Alberto"]
[null,null,20.75,"San Diego"]
[null,null,20.77,"San Martín"]
[null,null,20.786999999999999,"Tamalameque"]
[null,null,20.614000000000001,"Río de Oro"]
[null,null,20.399999999999999,"La Jagua de Ibirico"]
[null,null,27.15,"Carmen del Darien"]
[null,null,27.786999999999999,"Tadó"]
[null,null,27.001000000000001,"Quibdó"]
[null,null,27.006,"Acandí"]
[null,null,27.024999999999999,"Alto Baudo"]
[null,null,27.05,"Atrato"]
[null,null,27.073,"Bagadó"]
[null,null,27.074999999999999,"Bahía Solano"]
[null,null,27.077000000000002,"Bajo Baudó"]
[null,null,27.099,"Bojaya"]
[null,null,27.81,"Unión Panamericana"]
[null,null,27.16,"Cértegui"]
[null,null,27.204999999999998,"Condoto"]
[null,null,27.372,"Juradó"]
[null,null,27.413,"Lloró"]
[null,null,27.425000000000001,"Medio Atrato"]
[null,null,27.43,"Medio Baudó"]
[null,null,27.45,"Medio San Juan"]
[null,null,27.491,"Nóvita"]
[null,null,27.495000000000001,"Nuquí"]
[null,null,27.58,"Río Iro"]
[null,null,27.6,"Río Quito"]
[null,null,27.614999999999998,"Riosucio"]
[null,null,27.745000000000001,"Sipí"]
[null,null,27.8,"Unguía"]
[null,null,27.361000000000001,"Istmina"]
[null,null,27.25,"El Litoral del San Juan"]
[null,null,27.135000000000002,"El Cantón del San Pablo"]
[null,null,27.245000000000001,"El Carmen de Atrato"]
[null,null,27.66,"San José del Palmar"]
[null,null,27.085999999999999,"Belén de Bajira"]
[null,null,23.466000000000001,"Montelíbano"]
[null,null,23.001000000000001,"Montería"]
[null,null,23.068000000000001,"Ayapel"]
[null,null,23.079000000000001,"Buenavista"]
[null,null,23.09,"Canalete"]
[null,null,23.161999999999999,"Cereté"]
[null,null,23.167999999999999,"Chimá"]
[null,null,23.181999999999999,"Chinú"]
[null,null,23.3,"Cotorra"]
[null,null,23.417000000000002,"Lorica"]
[null,null,23.419,"Los Córdobas"]
[null,null,23.463999999999999,"Momil"]
[null,null,23.5,"Moñitos"]
[null,null,23.555,"Planeta Rica"]
[null,null,23.57,"Pueblo Nuevo"]
[null,null,23.574000000000002,"Puerto Escondido"]
[null,null,23.585999999999999,"Purísima"]
[null,null,23.66,"Sahagún"]
[null,null,23.67,"San Andrés Sotavento"]
[null,null,23.672000000000001,"San Antero"]
[null,null,23.686,"San Pelayo"]
[null,null,23.806999999999999,"Tierralta"]
[null,null,23.815000000000001,"Tuchín"]
[null,null,23.855,"Valencia"]
[null,null,23.35,"La Apartada"]
[null,null,23.58,"Puerto Libertador"]
[null,null,23.675000000000001,"San Bernardo del Viento"]
[null,null,23.681999999999999,"San José de Uré"]
[null,null,23.189,"Ciénaga de Oro"]
[null,null,23.678000000000001,"San Carlos"]
[null,null,25.018999999999998,"Albán"]
[null,null,25.04,"Anolaima"]
[null,null,25.175000000000001,"Chía"]
[null,null,25.257999999999999,"El Peñón"]
[null,null,25.757999999999999,"Sopó"]
[null,null,25.298999999999999,"Gama"]
[null,null,25.718,"Sasaima"]
[null,null,25.885000000000002,"Yacopí"]
[null,null,25.035,"Anapoima"]
[null,null,25.053000000000001,"Arbeláez"]
[null,null,25.085999999999999,"Beltrán"]
[null,null,25.094999999999999,"Bituima"]
[null,null,25.099,"Bojacá"]
[null,null,25.12,"Cabrera"]
[null,null,25.123000000000001,"Cachipay"]
[null,null,25.126000000000001,"Cajicá"]
[null,null,25.148,"Caparrapí"]
[null,null,25.151,"Caqueza"]
[null,null,25.167999999999999,"Chaguaní"]
[null,null,25.178000000000001,"Chipaque"]
[null,null,25.181000000000001,"Choachí"]
[null,null,25.183,"Chocontá"]
[null,null,25.2,"Cogua"]
[null,null,25.213999999999999,"Cota"]
[null,null,25.224,"Cucunubá"]
[null,null,25.245000000000001,"El Colegio"]
[null,null,25.26,"El Rosal"]
[null,null,25.279,"Fomeque"]
[null,null,25.280999999999999,"Fosca"]
[null,null,25.286000000000001,"Funza"]
[null,null,25.288,"Fúquene"]
[null,null,25.292999999999999,"Gachala"]
[null,null,25.295000000000002,"Gachancipá"]
[null,null,25.297000000000001,"Gachetá"]
[null,null,25.306999999999999,"Girardot"]
[null,null,25.312000000000001,"Granada"]
[null,null,25.317,"Guachetá"]
[null,null,25.32,"Guaduas"]
[null,null,25.321999999999999,"Guasca"]
[null,null,25.324000000000002,"Guataquí"]
[null,null,25.326000000000001,"Guatavita"]
[null,null,25.29,"Fusagasugá"]
[null,null,25.335000000000001,"Guayabetal"]
[null,null,25.338999999999999,"Gutiérrez"]
[null,null,25.367999999999999,"Jerusalén"]
[null,null,25.372,"Junín"]
[null,null,25.376999999999999,"La Calera"]
[null,null,25.385999999999999,"La Mesa"]
[null,null,25.393999999999998,"La Palma"]
[null,null,25.398,"La Peña"]
[null,null,25.402000000000001,"La Vega"]
[null,null,25.407,"Lenguazaque"]
[null,null,25.425999999999998,"Macheta"]
[null,null,25.43,"Madrid"]
[null,null,25.436,"Manta"]
[null,null,25.437999999999999,"Medina"]
[null,null,25.472999999999999,"Mosquera"]
[null,null,25.483000000000001,"Nariño"]
[null,null,25.486000000000001,"Nemocón"]
[null,null,25.488,"Nilo"]
[null,null,25.489000000000001,"Nimaima"]
[null,null,25.491,"Nocaima"]
[null,null,25.506,"Venecia"]
[null,null,25.513000000000002,"Pacho"]
[null,null,25.518000000000001,"Paime"]
[null,null,25.524000000000001,"Pandi"]
[null,null,25.53,"Paratebueno"]
[null,null,25.535,"Pasca"]
[null,null,25.571999999999999,"Puerto Salgar"]
[null,null,25.58,"Pulí"]
[null,null,25.591999999999999,"Quebradanegra"]
[null,null,25.594000000000001,"Quetame"]
[null,null,25.596,"Quipile"]
[null,null,25.599,"Apulo"]
[null,null,25.611999999999998,"Ricaurte"]
[null,null,25.649000000000001,"San Bernardo"]
[null,null,25.652999999999999,"San Cayetano"]
[null,null,25.658000000000001,"San Francisco"]
[null,null,25.899000000000001,"Zipaquirá"]
[null,null,25.736000000000001,"Sesquilé"]
[null,null,25.74,"Sibaté"]
[null,null,25.742999999999999,"Silvania"]
[null,null,25.745000000000001,"Simijaca"]
[null,null,25.754000000000001,"Soacha"]
[null,null,25.768999999999998,"Subachoque"]
[null,null,25.771999999999998,"Suesca"]
[null,null,25.777000000000001,"Supatá"]
[null,null,25.779,"Susa"]
[null,null,25.780999999999999,"Sutatausa"]
[null,null,25.785,"Tabio"]
[null,null,25.792999999999999,"Tausa"]
[null,null,25.797000000000001,"Tena"]
[null,null,25.798999999999999,"Tenjo"]
[null,null,25.805,"Tibacuy"]
[null,null,25.806999999999999,"Tibirita"]
[null,null,25.815000000000001,"Tocaima"]
[null,null,25.817,"Tocancipá"]
[null,null,25.823,"Topaipí"]
[null,null,25.838999999999999,"Ubalá"]
[null,null,25.841000000000001,"Ubaque"]
[null,null,25.844999999999999,"Une"]
[null,null,25.850999999999999,"Útica"]
[null,null,25.867000000000001,"Vianí"]
[null,null,25.870999999999999,"Villagómez"]
[null,null,25.873000000000001,"Villapinzón"]
[null,null,25.875,"Villeta"]
[null,null,25.878,"Viotá"]
[null,null,25.898,"Zipacón"]
[null,null,25.268999999999998,"Facatativá"]
[null,null,25.661999999999999,"San Juan de Río Seco"]
[null,null,25.843,"Villa de San Diego de Ubate"]
[null,null,25.327999999999999,"Guayabal de Siquima"]
[null,null,25.645,"San Antonio del Tequendama"]
[null,null,25.001000000000001,"Agua de Dios"]
[null,null,25.154,"Carmen de Carupa"]
[null,null,25.861999999999998,"Vergara"]
[null,null,94.001000000000005,"Inírida"]
[null,null,94.343000000000004,"Barranco Minas"]
[null,null,94.662999999999997,"Mapiripana"]
[null,null,94.882999999999996,"San Felipe"]
[null,null,94.884,"Puerto Colombia"]
[null,null,94.885000000000005,"La Guadalupe"]
[null,null,94.885999999999996,"Cacahual"]
[null,null,94.887,"Pana Pana"]
[null,null,94.888000000000005,"Morichal"]
[null,null,95.015000000000001,"Calamar"]
[null,null,95.001000000000005,"San José del Guaviare"]
[null,null,95.2,"Miraflores"]
[null,null,95.025000000000006,"El Retorno"]
[null,null,41.000999999999998,"Neiva"]
[null,null,41.006,"Acevedo"]
[null,null,41.012999999999998,"Agrado"]
[null,null,41.015999999999998,"Aipe"]
[null,null,41.02,"Algeciras"]
[null,null,41.026000000000003,"Altamira"]
[null,null,41.078000000000003,"Baraya"]
[null,null,41.131999999999998,"Campoalegre"]
[null,null,41.206000000000003,"Colombia"]
[null,null,41.244,"Elías"]
[null,null,41.298000000000002,"Garzón"]
[null,null,41.305999999999997,"Gigante"]
[null,null,41.319000000000003,"Guadalupe"]
[null,null,41.348999999999997,"Hobo"]
[null,null,41.356999999999999,"Iquira"]
[null,null,41.359000000000002,"Isnos"]
[null,null,41.378,"La Argentina"]
[null,null,41.396000000000001,"La Plata"]
[null,null,41.482999999999997,"Nátaga"]
[null,null,41.503,"Oporapa"]
[null,null,41.518000000000001,"Paicol"]
[null,null,41.524000000000001,"Palermo"]
[null,null,41.53,"Palestina"]
[null,null,41.548000000000002,"Pital"]
[null,null,41.551000000000002,"Pitalito"]
[null,null,41.615000000000002,"Rivera"]
[null,null,41.66,"Saladoblanco"]
[null,null,41.676000000000002,"Santa María"]
[null,null,41.77,"Suaza"]
[null,null,41.790999999999997,"Tarqui"]
[null,null,41.796999999999997,"Tesalia"]
[null,null,41.798999999999999,"Tello"]
[null,null,41.801000000000002,"Teruel"]
[null,null,41.807000000000002,"Timaná"]
[null,null,41.872,"Villavieja"]
[null,null,41.884999999999998,"Yaguará"]
[null,null,41.667999999999999,"San Agustín"]
[null,null,44.000999999999998,"Riohacha"]
[null,null,44.034999999999997,"Albania"]
[null,null,44.078000000000003,"Barrancas"]
[null,null,44.09,"Dibula"]
[null,null,44.097999999999999,"Distracción"]
[null,null,44.11,"El Molino"]
[null,null,44.279000000000003,"Fonseca"]
[null,null,44.378,"Hatonuevo"]
[null,null,44.43,"Maicao"]
[null,null,44.56,"Manaure"]
[null,null,44.847000000000001,"Uribia"]
[null,null,44.854999999999997,"Urumita"]
[null,null,44.874000000000002,"Villanueva"]
[null,null,44.42,"La Jagua del Pilar"]
[null,null,44.65,"San Juan del Cesar"]
[null,null,47.72,"Santa Bárbara de Pinto"]
[null,null,47.57,"Pueblo Viejo"]
[null,null,47.000999999999998,"Santa Marta"]
[null,null,47.03,"Algarrobo"]
[null,null,47.052999999999997,"Aracataca"]
[null,null,47.058,"Ariguaní"]
[null,null,47.161000000000001,"Cerro San Antonio"]
[null,null,47.17,"Chivolo"]
[null,null,47.204999999999998,"Concordia"]
[null,null,47.244999999999997,"El Banco"]
[null,null,47.258000000000003,"El Piñon"]
[null,null,47.268000000000001,"El Retén"]
[null,null,47.287999999999997,"Fundación"]
[null,null,47.317999999999998,"Guamal"]
[null,null,47.46,"Nueva Granada"]
[null,null,47.540999999999997,"Pedraza"]
[null,null,47.551000000000002,"Pivijay"]
[null,null,47.555,"Plato"]
[null,null,47.604999999999997,"Remolino"]
[null,null,47.674999999999997,"Salamina"]
[null,null,47.703000000000003,"San Zenón"]
[null,null,47.707000000000001,"Santa Ana"]
[null,null,47.744999999999997,"Sitionuevo"]
[null,null,47.798000000000002,"Tenerife"]
[null,null,47.96,"Zapayán"]
[null,null,47.98,"Zona Bananera"]
[null,null,47.189,"Ciénaga"]
[null,null,47.692,"San Sebastián de Buenavista"]
[null,null,47.66,"Sabanas de San Angel"]
[null,null,47.545000000000002,"Pijiño del Carmen"]
[null,null,50.15,"Castilla la Nueva"]
[null,null,50.000999999999998,"Villavicencio"]
[null,null,50.006,"Acacias"]
[null,null,50.124000000000002,"Cabuyaro"]
[null,null,50.222999999999999,"Cubarral"]
[null,null,50.225999999999999,"Cumaral"]
[null,null,50.244999999999997,"El Calvario"]
[null,null,50.250999999999998,"El Castillo"]
[null,null,50.27,"El Dorado"]
[null,null,50.313000000000002,"Granada"]
[null,null,50.317999999999998,"Guamal"]
[null,null,50.325000000000003,"Mapiripán"]
[null,null,50.33,"Mesetas"]
[null,null,50.35,"La Macarena"]
[null,null,50.37,"Uribe"]
[null,null,50.4,"Lejanías"]
[null,null,50.45,"Puerto Concordia"]
[null,null,50.567999999999998,"Puerto Gaitán"]
[null,null,50.573,"Puerto López"]
[null,null,50.576999999999998,"Puerto Lleras"]
[null,null,50.59,"Puerto Rico"]
[null,null,50.606000000000002,"Restrepo"]
[null,null,50.686,"San Juanito"]
[null,null,50.689,"San Martín"]
[null,null,50.710999999999999,"Vista Hermosa"]
[null,null,50.11,"Barranca de Upía"]
[null,null,50.286999999999999,"Fuente de Oro"]
[null,null,50.68,"San Carlos de Guaroa"]
[null,null,50.683,"San Juan de Arama"]
[null,null,52.11,"Buesaco"]
[null,null,52.835000000000001,"San Andrés de Tumaco"]
[null,null,52.082999999999998,"Belén"]
[null,null,52.24,"Chachagüí"]
[null,null,52.051000000000002,"Arboleda"]
[null,null,52.000999999999998,"Pasto"]
[null,null,52.018999999999998,"Albán"]
[null,null,52.021999999999998,"Aldana"]
[null,null,52.036000000000001,"Ancuyá"]
[null,null,52.079000000000001,"Barbacoas"]
[null,null,52.203000000000003,"Colón"]
[null,null,52.207000000000001,"Consaca"]
[null,null,52.21,"Contadero"]
[null,null,52.215000000000003,"Córdoba"]
[null,null,52.223999999999997,"Cuaspud"]
[null,null,52.226999999999997,"Cumbal"]
[null,null,52.232999999999997,"Cumbitara"]
[null,null,52.25,"El Charco"]
[null,null,52.253999999999998,"El Peñol"]
[null,null,52.256,"El Rosario"]
[null,null,52.26,"El Tambo"]
[null,null,52.286999999999999,"Funes"]
[null,null,52.317,"Guachucal"]
[null,null,52.32,"Guaitarilla"]
[null,null,52.323,"Gualmatán"]
[null,null,52.351999999999997,"Iles"]
[null,null,52.353999999999999,"Imués"]
[null,null,52.356000000000002,"Ipiales"]
[null,null,52.378,"La Cruz"]
[null,null,52.381,"La Florida"]
[null,null,52.384999999999998,"La Llanada"]
[null,null,52.39,"La Tola"]
[null,null,52.399000000000001,"La Unión"]
[null,null,52.405000000000001,"Leiva"]
[null,null,52.411000000000001,"Linares"]
[null,null,52.417999999999999,"Los Andes"]
[null,null,52.427,"Magüí"]
[null,null,52.435000000000002,"Mallama"]
[null,null,52.472999999999999,"Mosquera"]
[null,null,52.48,"Nariño"]
[null,null,52.49,"Olaya Herrera"]
[null,null,52.506,"Ospina"]
[null,null,52.52,"Francisco Pizarro"]
[null,null,52.54,"Policarpa"]
[null,null,52.56,"Potosí"]
[null,null,52.564999999999998,"Providencia"]
[null,null,52.573,"Puerres"]
[null,null,52.585000000000001,"Pupiales"]
[null,null,52.612000000000002,"Ricaurte"]
[null,null,52.621000000000002,"Roberto Payán"]
[null,null,52.677999999999997,"Samaniego"]
[null,null,52.683,"Sandoná"]
[null,null,52.685000000000002,"San Bernardo"]
[null,null,52.686999999999998,"San Lorenzo"]
[null,null,52.692999999999998,"San Pablo"]
[null,null,52.695999999999998,"Santa Bárbara"]
[null,null,52.72,"Sapuyes"]
[null,null,52.786000000000001,"Taminango"]
[null,null,52.787999999999997,"Tangua"]
[null,null,52.698999999999998,"Santacruz"]
[null,null,52.838000000000001,"Túquerres"]
[null,null,52.884999999999998,"Yacuanquer"]
[null,null,52.694000000000003,"San Pedro de Cartago"]
[null,null,52.258000000000003,"El Tablón de Gómez"]
[null,null,54.518000000000001,"Pamplona"]
[null,null,54.52,"Pamplonita"]
[null,null,54.000999999999998,"Cúcuta"]
[null,null,54.244999999999997,"El Carmen"]
[null,null,54.743000000000002,"Silos"]
[null,null,54.125,"Cácota"]
[null,null,54.82,"Toledo"]
[null,null,54.48,"Mutiscua"]
[null,null,54.261000000000003,"El Zulia"]
[null,null,54.66,"Salazar"]
[null,null,54.222999999999999,"Cucutilla"]
[null,null,54.552999999999997,"Puerto Santander"]
[null,null,54.313000000000002,"Gramalote"]
[null,null,54.25,"El Tarra"]
[null,null,54.8,"Teorama"]
[null,null,54.051000000000002,"Arboledas"]
[null,null,54.417999999999999,"Lourdes"]
[null,null,54.098999999999997,"Bochalema"]
[null,null,54.206000000000003,"Convención"]
[null,null,54.344000000000001,"Hacarí"]
[null,null,54.347000000000001,"Herrán"]
[null,null,54.81,"Tibú"]
[null,null,54.673000000000002,"San Cayetano"]
[null,null,54.67,"San Calixto"]
[null,null,54.398000000000003,"La Playa"]
[null,null,54.171999999999997,"Chinácota"]
[null,null,54.598999999999997,"Ragonvalia"]
[null,null,54.384999999999998,"La Esperanza"]
[null,null,54.874000000000002,"Villa del Rosario"]
[null,null,54.173999999999999,"Chitagá"]
[null,null,54.72,"Sardinata"]
[null,null,54.003,"Abrego"]
[null,null,54.405000000000001,"Los Patios"]
[null,null,54.497999999999998,"Ocaña"]
[null,null,54.109000000000002,"Bucarasica"]
[null,null,54.68,"Santiago"]
[null,null,54.377000000000002,"Labateca"]
[null,null,54.128,"Cachirá"]
[null,null,54.871000000000002,"Villa Caro"]
[null,null,54.238999999999997,"Durania"]
[null,null,86.567999999999998,"Puerto Asís"]
[null,null,86.885000000000005,"Villagarzón"]
[null,null,86.001000000000005,"Mocoa"]
[null,null,86.218999999999994,"Colón"]
[null,null,86.32,"Orito"]
[null,null,86.569000000000003,"Puerto Caicedo"]
[null,null,86.570999999999998,"Puerto Guzmán"]
[null,null,86.572999999999993,"Leguízamo"]
[null,null,86.748999999999995,"Sibundoy"]
[null,null,86.754999999999995,"San Francisco"]
[null,null,86.757000000000005,"San Miguel"]
[null,null,86.76,"Santiago"]
[null,null,86.864999999999995,"Valle de Guamez"]
[null,null,63.13,"Calarcá"]
[null,null,63.302,"Génova"]
[null,null,63.000999999999998,"Armenia"]
[null,null,63.110999999999997,"Buenavista"]
[null,null,63.19,"Circasia"]
[null,null,63.212000000000003,"Córdoba"]
[null,null,63.271999999999998,"Filandia"]
[null,null,63.401000000000003,"La Tebaida"]
[null,null,63.47,"Montenegro"]
[null,null,63.548000000000002,"Pijao"]
[null,null,63.594000000000001,"Quimbaya"]
[null,null,63.69,"Salento"]
[null,null,66.001000000000005,"Pereira"]
[null,null,66.045000000000002,"Apía"]
[null,null,66.075000000000003,"Balboa"]
[null,null,66.17,"Dosquebradas"]
[null,null,66.317999999999998,"Guática"]
[null,null,66.382999999999996,"La Celia"]
[null,null,66.400000000000006,"La Virginia"]
[null,null,66.44,"Marsella"]
[null,null,66.456000000000003,"Mistrató"]
[null,null,66.572000000000003,"Pueblo Rico"]
[null,null,66.593999999999994,"Quinchía"]
[null,null,66.686999999999998,"Santuario"]
[null,null,66.682000000000002,"Santa Rosa de Cabal"]
[null,null,66.087999999999994,"Belén de Umbría"]
[null,null,68.176000000000002,"Chimá"]
[null,null,68.147000000000006,"Capitanejo"]
[null,null,68.25,"El Peñón"]
[null,null,68.575000000000003,"Puerto Wilches"]
[null,null,68.572999999999993,"Puerto Parra"]
[null,null,68.001000000000005,"Bucaramanga"]
[null,null,68.013000000000005,"Aguada"]
[null,null,68.02,"Albania"]
[null,null,68.051000000000002,"Aratoca"]
[null,null,68.076999999999998,"Barbosa"]
[null,null,68.078999999999994,"Barichara"]
[null,null,68.081000000000003,"Barrancabermeja"]
[null,null,68.091999999999999,"Betulia"]
[null,null,68.100999999999999,"Bolívar"]
[null,null,68.120999999999995,"Cabrera"]
[null,null,68.132000000000005,"California"]
[null,null,68.152000000000001,"Carcasí"]
[null,null,68.16,"Cepitá"]
[null,null,68.162000000000006,"Cerrito"]
[null,null,68.167000000000002,"Charalá"]
[null,null,68.168999999999997,"Charta"]
[null,null,68.179000000000002,"Chipatá"]
[null,null,68.19,"Cimitarra"]
[null,null,68.206999999999994,"Concepción"]
[null,null,68.209000000000003,"Confines"]
[null,null,68.210999999999999,"Contratación"]
[null,null,68.216999999999999,"Coromoro"]
[null,null,68.228999999999999,"Curití"]
[null,null,68.245000000000005,"El Guacamayo"]
[null,null,68.254999999999995,"El Playón"]
[null,null,68.263999999999996,"Encino"]
[null,null,68.266000000000005,"Enciso"]
[null,null,68.271000000000001,"Florián"]
[null,null,68.275999999999996,"Floridablanca"]
[null,null,68.296000000000006,"Galán"]
[null,null,68.298000000000002,"Gambita"]
[null,null,68.307000000000002,"Girón"]
[null,null,68.317999999999998,"Guaca"]
[null,null,68.319999999999993,"Guadalupe"]
[null,null,68.322000000000003,"Guapotá"]
[null,null,68.323999999999998,"Guavatá"]
[null,null,68.326999999999998,"Güepsa"]
[null,null,68.367999999999995,"Jesús María"]
[null,null,68.37,"Jordán"]
[null,null,68.376999999999995,"La Belleza"]
[null,null,68.385000000000005,"Landázuri"]
[null,null,68.397000000000006,"La Paz"]
[null,null,68.406000000000006,"Lebríja"]
[null,null,68.418000000000006,"Los Santos"]
[null,null,68.424999999999997,"Macaravita"]
[null,null,68.432000000000002,"Málaga"]
[null,null,68.444000000000003,"Matanza"]
[null,null,68.463999999999999,"Mogotes"]
[null,null,68.468000000000004,"Molagavita"]
[null,null,68.498000000000005,"Ocamonte"]
[null,null,68.5,"Oiba"]
[null,null,68.501999999999995,"Onzaga"]
[null,null,68.522000000000006,"Palmar"]
[null,null,68.533000000000001,"Páramo"]
[null,null,68.546999999999997,"Piedecuesta"]
[null,null,68.549000000000007,"Pinchote"]
[null,null,68.572000000000003,"Puente Nacional"]
[null,null,68.614999999999995,"Rionegro"]
[null,null,68.668999999999997,"San Andrés"]
[null,null,68.679000000000002,"San Gil"]
[null,null,68.682000000000002,"San Joaquín"]
[null,null,68.686000000000007,"San Miguel"]
[null,null,68.704999999999998,"Santa Bárbara"]
[null,null,68.745000000000005,"Simacota"]
[null,null,68.754999999999995,"Socorro"]
[null,null,68.77,"Suaita"]
[null,null,68.772999999999996,"Sucre"]
[null,null,68.78,"Suratá"]
[null,null,68.819999999999993,"Tona"]
[null,null,68.861000000000004,"Vélez"]
[null,null,68.867000000000004,"Vetas"]
[null,null,68.872,"Villanueva"]
[null,null,68.894999999999996,"Zapatoca"]
[null,null,68.524000000000001,"Palmas del Socorro"]
[null,null,68.688999999999993,"San Vicente de Chucurí"]
[null,null,68.683999999999997,"San José de Miranda"]
[null,null,68.72,"Santa Helena del Opón"]
[null,null,68.655000000000001,"Sabana de Torres"]
[null,null,68.234999999999999,"El Carmen de Chucurí"]
[null,null,68.855000000000004,"Valle de San José"]
[null,null,68.673000000000002,"San Benito"]
[null,null,68.343999999999994,"Hato"]
[null,null,70.67,"Sampués"]
[null,null,70.215000000000003,"Corozal"]
[null,null,70.001000000000005,"Sincelejo"]
[null,null,70.11,"Buenavista"]
[null,null,70.123999999999995,"Caimito"]
[null,null,70.203999999999994,"Coloso"]
[null,null,70.221000000000004,"Coveñas"]
[null,null,70.23,"Chalán"]
[null,null,70.233000000000004,"El Roble"]
[null,null,70.234999999999999,"Galeras"]
[null,null,70.265000000000001,"Guaranda"]
[null,null,70.400000000000006,"La Unión"]
[null,null,70.418000000000006,"Los Palmitos"]
[null,null,70.429000000000002,"Majagual"]
[null,null,70.472999999999999,"Morroa"]
[null,null,70.507999999999996,"Ovejas"]
[null,null,70.522999999999996,"Palmito"]
[null,null,70.677999999999997,"San Benito Abad"]
[null,null,70.707999999999998,"San Marcos"]
[null,null,70.712999999999994,"San Onofre"]
[null,null,70.716999999999999,"San Pedro"]
[null,null,70.771000000000001,"Sucre"]
[null,null,70.822999999999993,"Tolú Viejo"]
[null,null,70.742000000000004,"San Luis de Sincé"]
[null,null,70.701999999999998,"San Juan de Betulia"]
[null,null,70.819999999999993,"Santiago de Tolú"]
[null,null,73.152000000000001,"Casabianca"]
[null,null,73.043000000000006,"Anzoátegui"]
[null,null,73.001000000000005,"Ibagué"]
[null,null,73.411000000000001,"Líbano"]
[null,null,73.408000000000001,"Lérida"]
[null,null,73.77,"Suárez"]
[null,null,73.024000000000001,"Alpujarra"]
[null,null,73.025999999999996,"Alvarado"]
[null,null,73.03,"Ambalema"]
[null,null,73.055000000000007,"Armero"]
[null,null,73.066999999999993,"Ataco"]
[null,null,73.123999999999995,"Cajamarca"]
[null,null,73.168000000000006,"Chaparral"]
[null,null,73.2,"Coello"]
[null,null,73.216999999999999,"Coyaima"]
[null,null,73.225999999999999,"Cunday"]
[null,null,73.236000000000004,"Dolores"]
[null,null,73.268000000000001,"Espinal"]
[null,null,73.27,"Falan"]
[null,null,73.275000000000006,"Flandes"]
[null,null,73.283000000000001,"Fresno"]
[null,null,73.319000000000003,"Guamo"]
[null,null,73.346999999999994,"Herveo"]
[null,null,73.349000000000004,"Honda"]
[null,null,73.352000000000004,"Icononzo"]
[null,null,73.442999999999998,"Mariquita"]
[null,null,73.448999999999998,"Melgar"]
[null,null,73.460999999999999,"Murillo"]
[null,null,73.483000000000004,"Natagaima"]
[null,null,73.504000000000005,"Ortega"]
[null,null,73.52,"Palocabildo"]
[null,null,73.546999999999997,"Piedras"]
[null,null,73.555000000000007,"Planadas"]
[null,null,73.563000000000002,"Prado"]
[null,null,73.584999999999994,"Purificación"]
[null,null,73.616,"Rio Blanco"]
[null,null,73.622,"Roncesvalles"]
[null,null,73.623999999999995,"Rovira"]
[null,null,73.671000000000006,"Saldaña"]
[null,null,73.686000000000007,"Santa Isabel"]
[null,null,73.861000000000004,"Venadillo"]
[null,null,73.87,"Villahermosa"]
[null,null,73.873000000000005,"Villarrica"]
[null,null,73.853999999999999,"Valle de San Juan"]
[null,null,73.147999999999996,"Carmen de Apicala"]
[null,null,73.677999999999997,"San Luis"]
[null,null,73.674999999999997,"San Antonio"]
[null,null,76.834000000000003,"Tuluá"]
[null,null,76.275000000000006,"Florida"]
[null,null,76.364000000000004,"Jamundí"]
[null,null,76.108999999999995,"Buenaventura"]
[null,null,76.25,"El Dovio"]
[null,null,76.622,"Roldanillo"]
[null,null,76.054000000000002,"Argelia"]
[null,null,76.736000000000004,"Sevilla"]
[null,null,76.894999999999996,"Zarzal"]
[null,null,76.248000000000005,"El Cerrito"]
[null,null,76.147000000000006,"Cartago"]
[null,null,76.122,"Caicedonia"]
[null,null,76.245999999999995,"El Cairo"]
[null,null,76.400000000000006,"La Unión"]
[null,null,76.605999999999995,"Restrepo"]
[null,null,76.233000000000004,"Dagua"]
[null,null,76.317999999999998,"Guacarí"]
[null,null,76.040999999999997,"Ansermanuevo"]
[null,null,76.113,"Bugalagrande"]
[null,null,76.403000000000006,"La Victoria"]
[null,null,76.305999999999997,"Ginebra"]
[null,null,76.891999999999996,"Yumbo"]
[null,null,76.497,"Obando"]
[null,null,76.099999999999994,"Bolívar"]
[null,null,76.001000000000005,"Cali"]
[null,null,76.67,"San Pedro"]
[null,null,76.111000000000004,"Guadalajara de Buga"]
[null,null,76.126000000000005,"Calima"]
[null,null,76.036000000000001,"Andalucía"]
[null,null,76.563000000000002,"Pradera"]
[null,null,76.89,"Yotoco"]
[null,null,76.52,"Palmira"]
[null,null,76.616,"Riofrío"]
[null,null,76.02,"Alcalá"]
[null,null,76.863,"Versalles"]
[null,null,76.242999999999995,"El Águila"]
[null,null,76.822999999999993,"Toro"]
[null,null,76.13,"Candelaria"]
[null,null,76.376999999999995,"La Cumbre"]
[null,null,76.844999999999999,"Ulloa"]
[null,null,76.828000000000003,"Trujillo"]
[null,null,76.869,"Vijes"]
[null,null,97.888999999999996,"Yavaraté"]
[null,null,97.001000000000005,"Mitú"]
[null,null,97.161000000000001,"Caruru"]
[null,null,97.510999999999996,"Pacoa"]
[null,null,97.665999999999997,"Taraira"]
[null,null,97.777000000000001,"Papunaua"]
[null,null,99.001000000000005,"Puerto Carreño"]
[null,null,99.524000000000001,"La Primavera"]
[null,null,99.623999999999995,"Santa Rosalía"]
[null,null,99.772999999999996,"Cumaribo"]

{"sheet":"Glosario","index":4,"n_rows":53,"n_cols":2,"rows_kept":53,"cut":false,"hidden":true,"merged":[[4,1,4,14],[5,1,5,14],[6,1,6,14],[0,0,0,14],[1,1,1,14],[2,1,2,14],[3,1,3,14],[13,1,13,14],[14,1,14,14],[15,1,15,14],[10,1,10,14],[11,1,11,14],[12,1,12,14],[7,1,7,14],[8,1,8,14],[9,1,9,14],[22,1,22,14],[23,1,23,14],[24,0,25,0],[24,1,25,14],[19,1,19,14],[20,1,20,14],[21,1,21,14],[16,1,16,14],[17,1,17,14],[18,1,18,14],[32,1,32,14],[33,1,33,14],[34,1,34,14],[29,1,29,14],[30,1,30,14],[31,1,31,14],[26,1,26,14],[27,1,27,14],[28,1,28,14],[41,1,41,14],[42,1,42,14],[43,1,43,14],[38,1,38,14],[39,1,39,14],[40,1,40,14],[35,1,35,14],[36,1,36,14],[37,1,37,14],[50,1,50,14],[51,1,51,14],[52,1,52,14],[47,1,47,14],[48,1,48,14],[49,1,49,14],[44,1,44,14],[45,1,45,14],[46,1,46,14],[59,1,59,14],[60,1,60,14],[61,1,61,14],[56,1,56,14],[57,1,57,14],[58,1,58,14],[53,1,53,14],[54,1,54,14],[55,1,55,14],[68,1,68,14],[69,1,69,14],[70,1,70,14],[65,1,65,14],[66,1,66,14],[67,1,67,14],[62,1,62,14],[63,1,63,14],[64,1,64,14],[77,1,77,14],[78,1,78,14],[79,1,79,14],[74,1,74,14],[75,1,75,14],[76,1,76,14],[71,1,71,14],[72,1,72,14],[73,1,73,14],[86,1,86,14],[87,1,87,14],[88,1,88,14],[83,1,83,14],[84,1,84,14],[85,1,85,14],[80,1,80,14],[81,1,81,14],[82,1,82,14],[95,1,95,14],[96,1,96,14],[97,1,97,14],[92,1,92,14],[93,1,93,14],[94,1,94,14],[89,1,89,14],[90,1,90,14],[91,1,91,14],[104,1,104,14],[105,1,105,14],[106,1,106,14],[101,1,101,14],[102,1,102,14],[103,1,103,14],[98,1,98,14],[99,1,99,14],[100,1,100,14],[116,1,116,14],[113,1,113,14],[114,1,114,14],[115,1,115,14],[110,1,110,14],[111,1,111,14],[112,1,112,14],[107,1,107,14],[108,1,108,14],[109,1,109,14]]}
["GLOSARIO DE TÉRMINOS SEGÚN EL REGLAMENTO PARA ESTRUCTURACIÓN, APROBACIÓN Y EJECUCIÓN DE LOS PROYECTOS INTEGRALES DE DESARROLLO AGROPECUARIO Y RURAL CON ENFOQUE TERRITORIAL"]
["TÉRMINO","DEFINICIÓN"]
["Asociatividad","Entendida como el mecanismo de cooperación que permite a pobladores rurales la posibilidad voluntaria de organizarse con un objetivo y un beneficio en común, bajo los principios de solidaridad, colaboración y comunidad con el fin de mejorar la productividad, competitividad, sostenibilidad y el desarrollo social integral del territorio mejorando las condiciones de vida de sus pobladores. "]
["Ampliación de distritos","Consiste en la ejecución de nuevas obras que se realizan para extender las obras de infraestructura existentes e instalar nuevos equipos mecánicos, electrónicos y electromecánicos con el fin de incorporar nuevas áreas a la producción con servicio de riego, drenaje y/o protección contra inundaciones. (Manual Normas Técnicas Proyectos ADT, UPRA, 2015)"]
["Banco de proyectos","Es un instrumento dinámico de gestión pública para la planeación, orientado a resultados, que registra la información de los perfiles de proyecto que ingresan a la Agencia, para su estructuración, evaluación, aprobación, ejecución y seguimiento, con el fin de ser cofinanciados con recursos públicos o privados y en el que se reportan periódicamente datos para el seguimiento y evaluación y tramite de ajustes de estos. Permite realizar labores de análisis, programación y ejecución de las inversiones, de seguimiento y evaluación de resultados, y de formulación y seguimiento de indicadores de gestión. (ADR, 2019)"]
["Beneficiarios","Corresponde a la población objetivo, identificada en el diagnóstico del proyecto, la cual indica el número de personas directas para quienes se solucionará el problema identificado previamente. (DNP, 2013) \nPara el presente reglamento se entenderán como beneficiarios de la cofinanciación de los PIDAR, los pequeños y medianos productores que conforman las Organizaciones Sociales, Comunitarias y Productivas Rurales, entendidas como aquellas figuras jurídicas sin ánimo de lucro legalmente constituidas, las cuales desarrollan actividades de producción agrícolas, pecuarias, acuícolas y/o pesqueras, forestales, u otra actividad productiva o comercial relacionada con el sector rural. También serán beneficiarias, las Entidades Territoriales o Esquemas Asociativos Territoriales que cumplan con los requisitos establecidos en el presente Reglamento. "]
["Bienes públicos rurales","Entendidos como aquellos que benefician a la comunidad o a una porción importante de ella en forma colectiva y que, por lo tanto, no pueden ser apropiados o provistos de manera individual. (Misión Para la Transformación del Campo, DNP, 2015). Para efectos del presente reglamento, se entenderá como, la infraestructura física que involucre actividades relacionadas con el sector agropecuario, necesarias para el desarrollo social y productivo del campo. "]
["Cabildo","Es una entidad pública especial, cuyos integrantes son miembros de una comunidad indígena, elegidos y reconocidos por ésta, con una organización socio política tradicional, cuya función es representar legalmente a la comunidad, ejercer la autoridad y realizar las actividades que le atribuyen las leyes, sus usos, costumbres y el reglamento interno de cada comunidad (Decreto 2164 de 1995, artículo 2)"]
["Calificación","Es un proceso adelantado por la ADR que se realiza de cada uno de los proyectos del Banco de Proyectos con base en criterios objetivos, con el fin que pueda priorizarse su cofinanciación, en aplicación de los criterios y procedimientos aprobados por la Agencia.  \n"]
["Cierre administrativo financiero","Desarrollo de actividades de socialización de los resultados de la ejecución del proyecto, en la que se hace una rendición de cuentas a los beneficiarios y un balance de los logros obtenidos con la ejecución del proyecto. En esta etapa se dan por finalizadas las acciones administrativas y financieras del PIDAR, de acuerdo con lo consignado en el Plan Operativo Anual- POA (ADR, 2019)."]
["Cofinanciación","Para efectos de este reglamento se entenderá como el aporte de recursos provenientes de la Agencia de Desarrollo Rural para la financiación de los PIDAR. "]
["Cofinanciador","Persona natural o jurídica que aporta dinero, bienes o servicios como contrapartida para la financiación del PIDAR."]
["Complementación de distritos","Consisten en la ejecución de obras o la dotación e instalación de los equipos faltantes en sectores específicos de distritos existentes, que, por no haberse concluido, o por no haber sido inicialmente concebidos e incorporados como parte constitutiva del proyecto, no ha sido posible el aprovechamiento pleno o el uso apropiado de las obras y equipos ya construidos o instalados. (Manual Normas Técnicas Proyectos ADT, UPRA, 2015). "]
["Comunidad negra","Conjunto de familias de ascendencia afrocolombiana que poseen una cultura propia, comparten una historia y tienen sus propias tradiciones y costumbres dentro de la relación campo-poblado, que revelan y conservan conciencia de identidad que las distinguen de otros grupos étnicos (Ley 70 de 1993)."]
["Consejo Comunitario","Persona jurídica que ejerce la máxima autoridad de administración interna dentro de las Tierras de las Comunidades Negras, de acuerdo con los mandatos constitucionales y legales que lo rigen y los demás que le asigne el sistema de derecho propio de cada comunidad. \n\nAl Consejo Comunitario lo integran la Asamblea General y la Junta del Consejo Comunitario (Decreto 1745 de 1995. Art. 3.)."]
["Contrapartida","Es el aporte representado en dinero, bienes o servicios que realizan los beneficiarios, u otros actores, con el fin de integrar las inversiones y los costos cofinanciados por la Agencia en el Proyecto Integral de Desarrollo Agropecuario y Rural con Enfoque Territorial, el cual deberá tener relación directa con la actividad productiva objeto de la cofinanciación y deberán discriminarse de manera específica, los elementos y conceptos que la integran."]
["Construcción de distritos","Consiste en la ejecución de obras de infraestructura para la puesta en funcionamiento del servicio de riego, drenaje y/o protección contra inundaciones, requeridas para la producción agropecuaria, en condiciones sostenibles desde el punto de vista ambiental, operativo, económico y productivo, dentro de un área determinada y previamente caracterizada. (Manual Normas Técnicas Proyectos ADT, UPRA, 2015)"]
["Control","Es una actividad ejercida por la ADR, la cual se orienta a la identificación de riesgos para su mitigación en el ciclo del proyecto, para lo cual se implementa un sistema de alertas que permite identificar atrasos y acciones a ser adelantadas respecto de los procesos de ejecución de proyectos integrales de desarrollo agropecuario y rural."]
["Desarrollo sostenible","Se entiende por desarrollo sostenible el que conduzca al crecimiento económico, a la elevación de la calidad de la vida y al bienestar social, sin agotar la base de recursos naturales renovables en que se sustenta, ni deteriorar el medio ambiente o el derecho de las generaciones futuras a utilizarlo para la satisfacción de sus propias necesidades. (Ley 99 de 1993)."]
["Distrito de adecuación de tierras","Corresponde a la delimitación del área de influencia de obras de infraestructura destinadas a dotar un área determinada con riego, drenaje o protección contra inundaciones; para los fines de gestión y manejo, se organizará en unidades de explotación agropecuaria bajo el nombre de Distritos de Adecuación de Tierras. (Artículo 4, Ley 41 de 1993). Las obras de infraestructura benefician de forma colectiva o compartida a los usuarios del distrito. Los distritos de adecuación de tierras se clasifican según su tamaño por las hectáreas beneficiadas en: distritos de pequeña escala de 30 a 500 ha, distritos de mediana escala de 501 a 5.000 ha y distritos de gran escala mayores a 5.000 ha (Artículo 3, Resolución 1399 de 2005 extinto INCODER).   "]
["Diversidad Biológica (Biodiversidad)","Es la variabilidad de organismos vivos de cualquier fuente, incluidos, entre otras cosas, los ecosistemas terrestres y marinos y otros ecosistemas acuáticos, y los complejos ecológicos de los que forman parte; comprende la diversidad dentro de cada especie, entre las especies y de los ecosistemas (Decreto 2372 de 2010)."]
["Ejecución","Es una etapa del ciclo de los proyectos, la cual incluye la ejecución física y financiera del proyecto; inicia con la expedición de certificación de cumplimiento de requisitos previos a la ejecución emitida por la Vicepresidencia de Integración Productiva y finaliza con la expedición del acto administrativo de cierre administrativo y financiero. "]
["Enfoque Diferencial","Es desarrollo progresivo del principio de igualdad y no discriminación, el cual entiende que, aunque todas las personas son iguales ante ley, se ven afectadas de manera diferente de acuerdo con su condición de clase, identidad de género, grupo étnico, edad, salud física o mental y orientación sexual. Es así como el artículo 13 de la Constitución Política afirma que el Estado debe promover las condiciones para que la igualdad sea material y efectiva y adoptar medidas en favor de grupos que históricamente han sido discriminados y/o excluidos .\n\nLos grupos poblacionales que la Agencia considera sujetos de esta atención diferenciada para el acompañamiento productivo rural con enfoque territorial son: las mujeres rurales: los jóvenes rurales; los pueblos indígenas, las comunidades negras, afrocolombianas, raizales y palenqueras, y el pueblo Rrom o gitano, víctimas del conflicto y personas reincorporadas."]
["Entidades Territoriales","Son entidades territoriales los departamentos, los distritos, los municipios y los territorios indígenas. La ley podrá darles el carácter de entidades territoriales a las regiones y provincias que se constituyan en los términos de la Constitución y de la ley. (artículo 286 Constitución Política de Colombia)"]
["Estructuras de suministro de agua","Son las que se construyen en la fuente de abastecimiento, destinadas a derivar el agua para el suministro del área a regar,  para el suministro de agua se pueden contemplar: captaciones superficiales (presas derivadoras, bocatomas laterales, tomas de fondo, estaciones de bombeo o equipos fijos o móviles de bombeo), pozos profundos para aprovechar aguas subterráneas (se incluyen aljibes, pozos artesanales, etc.) y reservorios (se incluyen jagüey, pequeñas lagunas o lagos o embalses, etc.), los pozos y reservorios pueden ser de tipo individual  o compartido,  captación de cosecha de agua lluvia (se incluyen estructuras de cosecha, cubiertas, almacenamiento, etc.), se incluye el sistema de suministro de energía necesario para la operación, siempre y cuando sus costos sean razonables. La estructura de suministro de agua debe contemplar un elemento de medición continua de caudal o volumen de agua captado  (Manual Especificaciones Técnicas Sistemas de Riego Completos, ADR, 2019).\n\nEstructuras de conducción y distribución desde la fuente de suministro de agua y hasta el área a regar: son las que permiten el transporte del agua a la zona de riego y su distribución. Pueden ser conductos cerrados que funcionen a flujo libre o a presión o canales abiertos de menor tamaño de ser estrictamente necesarios de acuerdo al riego predial previsto. (Manual Especificaciones Técnicas Sistemas de Riego Completos, ADR, 2019)\n\nEstructuras, equipos y accesorios de riego predial: es el que permite aplicar directamente el agua a los cultivos ubicados en el predio. Este sistema puede ser por gravedad o presurizado (fijo o móvil). Cuando sea presurizado por aspersión, micro aspersión, goteo o microgoteo, el riego predial puede incluir: aspersores, micro aspersores, goteros, u otro tipo de emisores, equipo de filtrado, tuberías principales y laterales, válvulas de paso, reguladores de presión, acometidas, hidrantes, elevadores, dosificadores, u otros, los cuales deben ser seleccionados de modo que proporcionen uniformidad en la aplicación y alta eficiencia en el uso del agua para la producción agropecuaria. El riego predial únicamente puede ser de tipo individual, no pude ser compartido por varios predios. (Manual Especificaciones Técnicas Sistemas de Riego Completos, ADR, 2019)\n\nEstructuras, equipos y accesorios de drenaje predial: son las que se construyen para evacuar los excesos de agua superficial y subsuperficial para controlar los niveles freáticos que permitan el manejo eficiente de la producción agropecuaria a nivel de predio que pueden ser implementados a través de tubería perforada enterrada, canal abierto en tierra, o galerías rellenas con material permeable, también se pueden contemplar equipos de bombeo y estructuras de descarga. En algunos casos se contempla una conexión con una red de canales terciarios y/o secundarios existentes, que servirán para conducir los excesos a la red principal de drenaje (caños, quebradas y ríos), pueden ser de tipo superficial o subsuperficial.  (Manual Especificaciones Técnicas Sistemas de Riego Completos, ADR, 2019)"]
[]
["Esquemas Territoriales Asociativos","Constituirán esquemas asociativos territoriales las regiones administrativas y de planificación, las regiones de planeación y gestión, las asociaciones de departamentos, las áreas metropolitanas, las asociaciones de distritos especiales, las provincias administrativas y de planificación, y las asociaciones de municipios (Ley 1454 de 2011, articulo 10)."]
["Estructuras de protección contra inundaciones","Son aquellas que se construyen como parte del riego y/o drenaje predial para proteger el cultivo a regar en un predio especifico por ser susceptible a inundaciones, las estructuras tienen que estar vinculadas directamente a la protección de la producción agropecuaria específicamente propuesta en el proyecto correspondiente. Para la protección contra inundaciones se pueden contemplar únicamente diques de protección contra inundaciones de corrientes de agua superficial (caños, quebradas y ríos) en diferentes materiales y estructuras. (Manual Especificaciones Técnicas Sistemas de Riego Completos, ADR, 2019)"]
["Estructuración","Etapa en la cual se realiza la formulación técnica del proyecto, con base en los lineamientos y herramientas que adopte la Agencia y se orienta a definir detalladamente la solución planteada con el proyecto. Para ello se define el alcance del proyecto, así como las condiciones para su puesta en marcha (técnicas, jurídicas, administrativas y financieras). El proceso se realiza de manera conjunta por la Vicepresidencia de Integración Productiva, la UTT y la Organización y/o entidad territorial o esquema asociativo que presentó el perfil."]
["Evaluación","Se refiere a la viabilidad técnica, jurídica, ambiental y financiera a partir de la validación que se realiza de la estructuración de proyectos integrales de desarrollo agropecuario y rural. "]
["Identidad Cultural","Es el reconocimiento de la cosmovisión de cada uno de los Pueblos Indígenas, como fundamento para comprender el orden de la naturaleza y establecer las formas de convivencia en ella (Decreto 1953 de 2014)."]
["Indicador de producto","Es el instrumento que permite medir en términos cuantitativos el avance de los bienes o servicios generados en el proyecto. Como su nombre lo indica tiene una relación directa con los productos ya que establece una relación de la cantidad de producto a entregar con el plazo para realizar dicha entrega. Dichas metas deben ser consistentes con la cantidad y caracterización de los beneficiarios, con la programación de las actividades a desarrollar y con sus costos (DNP, 2018)."]
["Joven Rural","Persona con edad entre los 16 y los 28 años, vinculada a zonas rurales y cuyo sustento económico depende en algún grado del ejercicio de actividades agropecuarias, sean o no realizadas por ellas y ellos."]
["Mediano productor ","Entiéndase por mediano productor toda persona dedicada a la actividad agropecuaria, pesquera, acuícola o desarrollo rural campesino, cuyos activos totales estén entre doscientos salarios mínimos mensuales legales vigentes (200 smmlv) y no superen los mil quinientos salarios mínimos mensuales legales vigentes (1.500 smmlv), incluidos los del cónyuge o compañero permanente, si fuere el caso (Artículo 2.1.4.1.4 Decreto 1071 de 2015). No obstante, las anteriores definiciones para los proyectos que se realicen con acuicultores comerciales en Colombia, las definiciones de pequeño y mediano productor que se tendrán en cuenta serán las establecidas en la Resolución 1607 del 25 de julio del 2019 expedida por la Autoridad Nacional de Acuicultura y Pesca, así como las norma que la complemente adiciones o sustituya."]
["Modernización de distritos","Se refiere a la introducción de cambios tecnológicos en distritos existentes, que impliquen un mejoramiento significativo de sus condiciones actuales de administración y operación, como serían los casos de la automatización de compuertas, la dotación de sistemas de telecomunicaciones, la instalación de sensores para la medición de niveles o caudales de agua, etc. Se excluyen específicamente los medios de transporte terrestre y la maquinaria y equipos de mantenimiento de los distritos. (Manual Normas Técnicas Proyectos ADT, UPRA, 2015)."]
["Mujer Rural","Es toda aquella que sin distingo de ninguna naturaleza e independientemente del lugar donde viva, su actividad productiva está relacionada directamente con lo rural, incluso si dicha actividad no es reconocida por los sistemas de información y medición del Estado o no es remunerada (Ley 731 de 2002)."]
["Producto","Son los bienes o servicios que genera el proyecto y se obtienen como resultado de la ejecución de las actividades; éstos forman parte de la cadena de valor ya que a través de ellos se logra el cumplimiento de los objetivos específicos definidos para el proyecto.\nSe debe tener en cuenta que, en los productos, se verán reflejadas las especificaciones técnicas del proyecto que son analizadas en el proceso de viabilidad, por lo cual se considera que adicionarlos, suprimirlos o modificarlos, alterará el alcance de éste. Además, la adecuada ejecución de las actividades programadas se verá reflejada en términos de cantidad y calidad de los productos (DNP, 2018)"]
["Plan Operativo Annual","Instrumento de planeación, que contiene las actividades del proyecto, bienes y servicios, fechas de ejecución, recursos necesarios para la ejecución, fuentes de financiación, metas y medios de verificación."]
["Pequeño Productor","Entiéndase por pequeño productor toda persona dedicada a la actividad agropecuaria, pesquera, acuícola o de desarrollo rural campesino, cuyos activos totales no superen los doscientos salarios mínimos legales mensuales vigentes (200 smlmv), incluidos los del cónyuge o compañero permanente, si fuere del caso (Artículo 2.1.4.1.4. Decreto 1071 de 2015). No obstante, las anteriores definiciones para los proyectos que se realicen con acuicultores comerciales en Colombia, las definiciones de pequeño y mediano productor que se tendrán en cuenta serán las establecidas en la Resolución 1607 del 25 de julio del 2019 expedida por la Autoridad Nacional de Acuicultura y Pesca, así como las norma que la complemente adiciones o sustituya."]
["Proyectos Integrales de Desarrollo Agropecuario y Rural con Enfoque Territorial - PIDAR","Aquellas iniciativas que contemplan actividades limitadas en el tiempo, que utilizan parcialmente recursos públicos, con el fin de crear, ampliar, mejorar o recuperar la capacidad de producción o de provisión de bienes o servicios por parte del Estado en el sector rural, enfocadas a   incentivar la generación de ingresos o excedentes de producción, para contribuir a mejorar las condiciones de vida de los pobladores rurales y la competitividad del país\n\nLos proyectos están encaminados a resolver una necesidad puntual del territorio rural y para su estructuración, se establecerá la caracterización de la situación actual de la población a atender y su entorno, a partir de la cual, se definen la justificación, los objetivos, el componente técnico y ambiental, los resultados, el plan de mercadeo y comercialización, y los impactos esperados."]
["Pueblo indígena","Conjunto de familias de ascendencia amerindia que comparten sentimientos de identificación con su pasado aborigen, manteniendo rasgos y valores propios de su cultura tradicional, así como formas de organización y control social propios que los distinguen de otros grupos étnicos (Decreto 2146 de 1995)."]
["Reconocimiento de la diversidad étnica y cultural","Es aceptar, respetar y fortalecer la existencia de diversas formas de vida y sistemas de comprensión del mundo, de valores, diversidad lingüística, formas de comunicación propias, creencias, actitudes y conocimientos (Decreto 1953 de 2014)."]
["Rehabilitación de distritos","Consiste en la recuperación total o parcial de las obras de infraestructura o equipos de un distrito existente que se encuentren deteriorados, a fin de que cumplan con las funciones para las que originalmente fueron construidas o dotados. Dentro de este concepto se incluye también la corrección de errores o equivocaciones de carácter técnico, originadas en diseños o construcciones defectuosas o deficientes, que impiden el empleo adecuado de las obras o equipos. (Manual Normas Técnicas Proyectos ADT, UPRA, 2015)"]
["Reincorporación","Es un proceso integral y sostenible, excepcional y transitorio, que busca la reintegración de los miembros de las otrora FARC-EP junto con sus familias al tejido social, basado en la convivencia y la reconciliación con los demás integrantes de la comunidad. Este proceso va acompañado de actividades productivas y participación en la actividad democrática, y tendrá en todos sus componentes un enfoque diferencial, con énfasis en los derechos de las mujeres (Jurisdicción Especial para la Paz, s.f.)"]
["Reincorporado","El desmovilizado certificado por el Comité Operativo para la Dejación de las Armas, CODA, que se encuentre en el proceso de reincorporación a la vida civil. (Ministerio de Defensa Nacional, 2003, p. 1)"]
["Resguardos Indígenas","Los resguardos indígenas son propiedad colectiva de las comunidades indígenas en favor de las cuales se constituyen y conforme a los artículos 63 y 329 de la Constitución Política, tienen el carácter de inalienables, imprescriptibles e inembargables. Los resguardos son una institución legal y sociopolítica de carácter especial, conformada por una o más comunidades indígenas, que con un título de propiedad colectiva que goza de las garantías de la propiedad privada, poseen su territorio y se rigen para el manejo de éste y su vida interna por una organización autónoma amparada por el fuero indígena y su sistema normativo propio (Decreto 2164 de 1995. Art. 21)."]
["Sector agropecuario","Se entiende por sector agropecuario aquel cuya actividad económica está circunscrita a los ámbitos agrícola, pecuario, forestal, acuícola y pesquero, así como la adecuación y la transformación de la producción los servicios de apoyo asociados y la comercialización de productos primarios (Ley 1876 de 2017)."]
["Servicios","Son aquellos productos de naturaleza intangible, que además se caracterizan por generarse y consumirse de forma simultánea con lo cual para su desarrollo regularmente se hace uso tanto de insumos como de bienes. En este sentido la cuantificación de la prestación de los servicios se realiza en función de los beneficiarios que se espera atender con ellos (DNP, 2018)."]
["Sistemas de riego completos a nivel predial","Se refiere a la construcción de un conjunto de estructuras, equipos y accesorios que hacen posible que una determinada área de un predio pueda ser cultivada mediante el suministro y aplicación del recurso hídrico necesario a las plantas, así como la evacuación del exceso de agua y la protección contra inundaciones de ser necesario. Dentro de los componentes se encuentran: b-i) estructuras de suministro de agua; b-ii) estructuras de conducción y distribución desde la fuente de suministro de agua y hasta el área a regar; b-iii) estructuras, equipos y accesorios de riego o drenaje predial destinados a facilitar la aplicación del agua a la planta o la evacuación de su acceso; b-iv) estructuras de protección contra inundaciones. (Manual Especificaciones Técnicas Sistemas de Riego Completos, ADR, 2019)"]
["Supervisión","De conformidad con el artículo 83 de la Ley 1474 de 2011 “la supervisión consistirá en el seguimiento técnico, administrativo, financiero, contable, y jurídico que, sobre el cumplimiento del objeto del contrato, es ejercida por la misma entidad estatal cuando no requieren conocimientos especializados”."]
["Territorios Indígenas","Áreas poseídas en forma regular y permanente por una comunidad, parcialidad o grupo indígena y aquellas que, aunque no se encuentren poseídas en esa forma, constituyen el ámbito tradicional de sus actividades sociales, económicas y culturales (Artículo 2 del Decreto 2164 de 1995)."]
["Usuario de distrito de adecuación de tierras","Es usuario de un distrito de adecuación de tierras toda persona natural o jurídica que explote en calidad de dueño, tenedor o poseedor, acreditado con justo título, un predio en el área de dicho distrito. En tal virtud, debe someterse a las normas legales o reglamentarias que regulen la utilización de los servicios, el manejo y conservación de las obras y la protección y defensa de los recursos naturales. (Artículo 5, Ley 41 de 1993"]
["Víctimas","Personas que individual o colectivamente han sufrido un daño por hechos ocurridos a partir del 1º de enero de 1985, como consecuencia de infracciones al Derecho Internacional Humanitario o de violaciones graves y manifiestas a las normas internacionales de Derechos Humanos, ocurridas con ocasión del conflicto armado interno (Ley 1448 de 2011, Art. 3). "]

{"sheet":"BD","index":5,"n_rows":71,"n_cols":6,"rows_kept":71,"cut":false,"hidden":true,"merged":[]}
["Organización comunitaria",null,"Tipo de proyecto","TIPOS DE ORGANIZACIÓN",null,"Cadena productiva"]
["Juntas de Acción comunal",null,"Proyectos estratégicos nacionales","Asociaciones",null,"Turismo y Hoteleria"]
["Cabildos Indígenas",null,"Proyectos de Iniciativa Territorial","Cooperativas y Precooperativas",null,"Ambientales"]
["Consejos Comunitarios",null,"Proyectos de Iniciativa Asociativa","Empresas Comunitarias y Comités Empresariales",null,"Reciclaje"]
["Empresas Comunitarias",null,null,null,null,"Gastronómicas"]
["Kumpanias",null,"Línea de cofinanciación","Definiciones",null,"Comerciales"]
[null,null,"PIDAR de Especialización Competitiva"," Es aquel que se enfoca en estructurar una iniciativa productiva especializándose en incrementar la competitividad de una única actividad de agregación de valor en el marco de una cadena de valor agropecuaria"]
["Organizaciones productivas",null,"PIDAR de Encadenamiento productivo","Es aquel que se enfoca en encadenar dos o más actividades de agregación de valor en el marco de una cadena de valor agropecuaria incrementando la competitividad de dicha cadena."]
["Cooperativas agropecuarios, piscícolas o agroindustriales"]
["Precooperativas agropecuarias, piscícolas o agroindustriales",null,"Enfoque diferencial","Construcción distrito de pequeña escala"]
["Cooperativas multiactivas e integrales rurales",null,"Mujer rural","Ampliación, rehabilitación, complementación, modernización y/o conservación de distritos de pequeña y mediana escala existentes de propiedad Asociación Usuarios"]
["Sociedades agrarias de transformación - SAT.",null,"Indígenas","Soluciones alternativas de adecuación de tierras ligadas a actividades productivas"]
["Asociaciones de Usuarios de Distritos de Adecuación de Tierras",null,"Comunidades negras","Preparación de terrenos con fines de riego o drenaje"]
[null,null,"Afrocolombianas"]
["Organizaciones de representación",null,"Raizales"]
["Asociaciones o corporaciones campesinas",null,"Palenqueras","Fuente superficial (río, quebrada, arroyo, etc.)"]
["Asociaciones o corporaciones agropecuarias",null,"Rom","Fuente de almacenamiento: (Embalse, reservorio, etc)"]
[null,null,"Jovenes","Pozos profundos"]
[null,null,"Víctimas","Cosecha agua lluvia"]
["Tiene valor agregado",null,"Personas en proceso de reincorporación"]
["Si "]
["No"]
["Ante cual",null,null,"Suministro y almacenamiento"]
["Si","No","Minorista","\tConducción, distribución, aplicación y automatización"]
[null,null,"Mayorista","\tSistemas prediales"]
["Conservación","No Aplica","Exportación","Actividad (Agrícola o Pecuaria)"]
["Transformación","No Aplica","Institucional","Línea productiva"]
["Producción limpia","No Aplica","Otros","Tipo de sistema a utilizar"]
["Orgánica","No Aplica"]
["Empaque","No Aplica","Semanal"]
["Embalaje","No Aplica","mensual"]
["Sellos","No Aplica","Bimestral"]
["Certificaciones","No Aplica","Trimestral "]
["Otros    cuáles","No Aplica","Otro"]
[]
["Licencia ambiental ",null,"Agencia de Desarrollo Rural","Ampliación, rehabilitación, complementación y modernización de distritos de pequeña, mediana y gran escala existentes, de propiedad Asociación Usuarios"]
["Concesión de agua ",null,"Gobernación","Sistema de Riego y/o Drenaje a Nivel Predial"]
["Permiso de vertimiento ",null,"Postulante","- Estructuras de suministro y almacenamiento de agua\n- Estructuras de conducción y distribución desde la fuente de captación de agua, hasta el área a regar y el sistema productivo a atender.\n- Estructuras, equipos y accesorios de riego o drenaje predial destinados a facilitar la aplicación del agua a la plata o la evacuación de su exceso (Drenajes)"]
["Permiso de aprovechamiento forestal",null,"Beneficiarios","Estructuras de conducción y distribución desde la fuente de captación de agua, hasta el área a regar y el sistema productivo a atender."]
["Permiso de emisiones atmosférica ",null,"Otros","Estructuras, equipos y accesorios de riego o drenaje predial destinados a facilitar la aplicación del agua a la plata o la evacuación de su exceso (Drenajes)"]
[null,null,null,"N.A"]
["Productos",null,"Actividades "]
["Fortalecer la actividad productiva principal.",null,"Visitas a finca.","Bocatoma superficial"]
["Promover el uso e implementación de Buenas Prácticas Agrícolas, Pecuarias y/o Acuícolas.",null,"Días de campo.","Bombeo superficial"]
["Fortalecer las estructuras de comercialización.",null,"Demostración de método.","Pozos o aljibes"]
["Impulsar el valor agregado en los procesos de producción.",null,"Demostraciones de resultado.","Estructura de almacenamiento (Tanques, reservorios, entre otros)"]
["Fomentar el manejo de registros del sistema productivo",null,"Giras.","Estructura para captación de Agua lluvia"]
["Impulsar los procesos de emprendimiento.",null,"Rutas de aprendizaje."]
["Promover alianzas comerciales.",null,"Cursos.","Toma predial por gravedad abastecida por el distrito "]
[" Fomentar el uso de sellos de calidad y certificaciones",null,"Conferencias.","Toma predial presurizada abastecida por el distrito"]
["Desarrollar habilidades para el uso de las TIC",null,"Escuelas de campo"]
["Implementar prácticas de manejo y conservación del medio ambiente.",null,null,"Redes de aducción "]
["Fomentar prácticas ambientales sostenibles.",null,null,"Redes de conducción"]
["Implementar actividades de mitigación y adaptación al cambio climático.",null,null,"Redes de distribución"]
["Fomentar la autogestión de las comunidades en espacios de participación",null,null,"Equipos de control y automatización "]
[null,null,null,"Hidráulica"]
["Si","Q=","N.A","Eólica"]
["No","Vigencia concesión=","N.A","Solar"]
[null,"Nombre de la estación","N.A","Tradicional (Planta con Combustible)"]
[null,null,null,"Otra ¿Cuál?"]
[null,null,null,"Riego por aspersión o micro aspersión"]
["Arroz",null,null,"Riego por goteo "]
["Papa",null,null,"Otros (Pivote, carrete, etc)"]
["Maíz",null,null,"Drenaje superficial"]
["Caña panelera",null,null," Drenaje subsuperficial"]
["Aguacate hass"]
["Algodón"]
["Cebolla"]
["Láctea enfocada a ganadería sostenible"]
["Forestales"]
["Pesca y acuicultura"]